Cogmind - Beta 11.1 @@@ ROGUE MODE // 2022.06.16 @ 16:52:48 Player: Savant Result: Destroyed by L-61 Swordsman with Power Sword Performance ------------- Evolutions (6) 3000 Regions Visited (30) 6000 Robots Destroyed (421) 2105 Value Destroyed (16378) 16378 Prototype IDs (93) 1860 Alien Tech Used (1) 200 Bonus (4873) 4873 TOTAL SCORE: 34416 Bonus ------- High Alert Combat Kills 364 Follower Combat Kills 3823 Network Hubs Disabled 400 Met Data Miner 300 Met Imprinter 300 Destroyed Z-Imprinter 1000 Triggered Deep Caves Wall 500 Exposed GOLEM Chamber 500 A7 Reached Mainframe 300 Friendly Fire -2614 Cogmind --------- Core Integrity 0/1150 Matter 94/300 Energy 14/180 System Corruption 10% Temperature Cool (0) Movement Rolling (110) Ox1 Location -4/Armory Parts ------- > --- POWER (2) -------- Light Particle Reactor > --- PROPULSION (3) --- Centrium Wheel Centrium Wheel Centrium Wheel > --- UTILITY (12) ----- Advanced Heat Sink Advanced Cooling System High-capacity Storage Unit Experimental Signal Interpreter Long-range Terrain Scanner Experimental Terrain Scan Processor Advanced Targeting Computer Centrium Medium Armor Plating Graphene Brace Experimental Hacking Suite Experimental Hacking Suite Advanced System Shield > --- WEAPON (3) ------- Enhanced Quantum Rifle Enhanced Nova Cannon Hypervelocity Railgun > --- INVENTORY (20) --- Centrium Wheel Advanced Energy Well (500) Long-range Sensor Array Experimental Sensor Array Advanced Cloaking Device Centrium Medium Armor Plating Medium Regenerative Plating Improved Shock Absorption System EM Disruption Field Experimental Hacking Suite GOLEM Unit GOLEM Unit Scatter Rocket Array CR-A16's Behemoth Slayer Peak State ------------ > --- POWER ------------ Light Antimatter Reactor Particle Reactor > --- PROPULSION ------- Centrium Wheel Centrium Wheel Centrium Wheel > --- UTILITY ---------- Advanced Heat Sink High-capacity Storage Unit Experimental Sensor Array Experimental Signal Interpreter Long-range Terrain Scanner Experimental Terrain Scan Processor Advanced Targeting Computer Centrium Medium Armor Plating Medium Regenerative Plating Experimental Hacking Suite Experimental Hacking Suite Advanced System Shield > --- WEAPON ----------- Enhanced Quantum Rifle Enhanced Quantum Rifle Enhanced Nova Cannon > --- INVENTORY -------- Centrium Wheel Advanced Heat Sink Advanced Energy Well Zionite Biocell Long-range Sensor Array Advanced Cloaking Device Centrium Medium Armor Plating Graphene Brace Improved Shock Absorption System EM Disruption Field Experimental Hacking Suite Improved System Restoration Module GOLEM Unit GOLEM Unit Tesla Rifle Hypervelocity Railgun Scatter Rocket Array CR-A16's Behemoth Slayer [Rating: 156] Favorites ----------- Power Neutrino Core Engine Cooled Ion Engine Power Core Neutrino Core Reactor Zionite Light DM Reactor Propulsion Wheel Treads Improved Medium Treads Leg Carbon-fiber Leg Wheel Wheel Hover Unit Zionite Glidesys I Utility Experimental Hacking Suite Device Experimental Sensor Array Storage High-capacity Storage Unit Processor Experimental Signal Interpreter Hackware Experimental Hacking Suite Protection Medium Regenerative Plating Weapon Heavy Particle Gun Energy Gun Heavy Particle Gun Energy Cannon Cooled Particle Cannon Ballistic Gun Hypervelocity Railgun Ballistic Cannon Tri-rail Accelerator Launcher Scatter Rocket Array Impact Weapon Maul Piercing Weapon CR-A16's Pointy Stick Special Melee Weapon Datajack Build | -11 -10 -10 -9 -9 -9 -8 -8 -8 -7 -7 -7 -7 -7 -6 -6 -6 -6 -6 -5 -5 -5 -5 -5 -5 -5 -5 -4 -4 -4 -4 ------- Run | Scr Mat Min Mat Min Exi Min Mat Sto Fac Low Low Zio Dee Pro Fac Low Low Dat Pro Fac Was Fac Ext Cet Arc Hub Fac Was Fac Arm Slots Evolved 12 | . . . 2 . . . 2 . 2 . . . . . 2 . . . . 2 . . . . . . 2 . . . Power . | . . . . . . . . . . . . . . . . . . . . . . . . . . . . . . . Propulsion 1 | . . . . . . . 1 . . . . . . . . . . . . . . . . . . . . . . . Utility 10 | . . . 2 . . . . . 2 . . . . . 2 . . . . 2 . . . . . . 2 . . . Weapon 1 | . . . . . . . 1 . . . . . . . . . . . . . . . . . . . . . . . Parts Attached 851 | 6 14 9 41 3 1 21 43 23 26 14 11 9 33 10 132 12 13 4 32 80 5 6 24 6 3 4 22 15 116 113 Power 36 | 1 1 1 1 . . 1 1 1 . . . . 2 . 6 1 1 . . 5 . . 1 1 . . 1 1 4 6 Engine 10 | 1 1 . . . . 1 1 1 . . . . . . 1 . 1 . . 1 . . 1 . . . 1 . . . Core 14 | . . 1 1 . . . . . . . . . . . 4 1 . . . 4 . . . . . . . . 1 2 Reactor 12 | . . . . . . . . . . . . . 2 . 1 . . . . . . . . 1 . . . 1 3 4 Propulsion 95 | 2 5 5 17 . . 4 7 8 3 . . . 3 . 13 . . . 3 10 . . 2 . 1 . 2 2 8 . Treads 35 | 1 3 3 8 . . 1 4 5 . . . . . . 1 . . . 2 3 . . 1 . . . 1 1 1 . Leg 5 | . . . . . . . 2 . . . . . . . 3 . . . . . . . . . . . . . . . Wheel 52 | 1 2 2 9 . . 3 1 2 3 . . . 1 . 9 . . . 1 7 . . 1 . 1 . 1 1 7 . Hover 3 | . . . . . . . . 1 . . . . 2 . . . . . . . . . . . . . . . . . Flight . | . . . . . . . . . . . . . . . . . . . . . . . . . . . . . . . Utility 475 | 1 2 2 11 1 1 4 20 10 12 11 9 7 14 2 68 9 8 2 21 45 4 5 16 3 1 3 15 7 80 81 Device 318 | . 1 2 2 . . 3 11 6 7 7 7 4 3 1 41 9 8 2 16 29 3 5 14 1 1 2 13 2 58 60 Storage 14 | 1 1 . . . 1 . 2 . . . . . 2 . 2 . . . 1 1 . . . . . . 1 1 1 . Processor 14 | . . . 1 . . . . 1 2 2 . 1 . . 2 . . . . 3 . . . . . . . . 1 1 Hackware 20 | . . . 1 . . . 2 1 2 . . . . . 5 . . . . 4 . . . . . . 1 1 2 1 Protection 109 | . . . 7 1 . 1 5 2 1 2 2 2 9 1 18 . . . 4 8 1 . 2 2 . 1 . 3 18 19 Artifact . | . . . . . . . . . . . . . . . . . . . . . . . . . . . . . . . Weapon 245 | 2 6 1 12 2 . 12 15 4 11 3 2 2 14 8 45 2 4 2 8 20 1 1 5 2 1 1 4 5 24 26 Energy Gun 107 | 2 4 1 7 1 . 4 11 1 7 1 1 1 9 8 29 . . . . 9 1 . . . . . 2 1 . 7 Energy Cannon 64 | . . . . . . . . . . . 1 . . . 7 1 2 1 5 6 . 1 3 1 1 . 2 3 20 10 Ballistic Gun 17 | . . . 2 . . 6 . . . . . . . . 1 . . . . 1 . . . . . . . . . 7 Ballistic Cannon 3 | . . . . . . . . . . 1 . . . . . . . . . 1 . . . . . 1 . . . . Launcher 18 | . 2 . . 1 . 2 . 1 . . . . 1 . 3 1 2 . 1 2 . . . . . . . 1 . 1 Special Weapon . | . . . . . . . . . . . . . . . . . . . . . . . . . . . . . . . Impact Weapon 17 | . . . 3 . . . 4 2 4 1 . 1 2 . . . . . . . . . . . . . . . . . Slashing Weapon . | . . . . . . . . . . . . . . . . . . . . . . . . . . . . . . . Piercing Weapon 18 | . . . . . . . . . . . . . 2 . 5 . . . 2 1 . . 2 1 . . . . 4 1 Special Melee Weapon 1 | . . . . . . . . . . . . . . . . . . 1 . . . . . . . . . . . . Unidentified Prototypes 25 | . . . 1 . . 1 . 4 . . . . 10 . 1 1 . . 2 1 . . . 2 . 1 . . 1 . Corrupted Parts 3 | . . . . . . . . 1 . . . . . . 1 . . . . . . . . . . . . . 1 . System Corruption 13 | . . . . . . . . 6 . . . . . . 4 . . . . . . . . . . . . . 3 . Parts Lost 101 | . 1 . 2 1 . 10 6 . 2 . . . 13 . 22 1 . . 7 8 . . 2 . 2 2 2 6 4 10 Power 14 | . 1 . . . . 1 . . . . . . 2 . 2 1 . . 2 1 . . 1 . . . . 1 . 2 Propulsion 25 | . . . . . . 2 2 . 1 . . . 3 . 6 . . . 2 3 . . 1 . 1 1 . 2 1 . Utility 33 | . . . 1 1 . 3 1 . . . . . 6 . 8 . . . 2 2 . . . . . . 1 2 2 4 Weapon 29 | . . . 1 . . 4 3 . 1 . . . 2 . 6 . . . 1 2 . . . . 1 1 1 1 1 4 Highest Loss Streak 10 | . 1 . 1 1 . 5 2 . 1 . . . 10 . 6 1 . . 7 5 . . 2 . 2 2 2 6 2 2 To Critical Strikes . | . . . . . . . . . . . . . . . . . . . . . . . . . . . . . . . Average Slot Usage (%) 92 | . 99 100 99 100 100 97 96 98 91 91 92 91 83 87 93 84 85 87 82 95 94 88 93 93 93 93 98 71 94 99 Engine 3 | . 13 7 . . . 10 9 9 7 7 7 7 . . 1 . 4 6 1 5 . . 2 5 5 5 4 1 . . Core 3 | . . 7 11 11 11 . . . . . . . . . 1 6 6 6 1 4 11 11 8 4 . . . . 2 1 Reactor 2 | . . . . . . . . . . . . . 5 7 2 . . . . . . . . . 5 5 5 3 7 8 Treads 4 | . 16 17 11 11 11 9 6 17 4 . . . . . 2 . . . 8 5 . . 2 5 5 5 5 2 1 . Wheel 10 | . 11 11 10 11 11 11 11 7 10 15 15 15 7 7 8 12 12 12 7 10 16 16 13 11 10 10 9 5 10 15 Device 13 | . 13 14 11 11 11 13 8 8 8 11 14 12 12 18 19 12 12 12 12 12 1 5 10 7 5 9 17 12 15 16 Storage 7 | . 14 14 11 11 11 11 9 9 7 7 7 7 9 15 9 6 6 6 6 5 5 5 5 5 5 5 5 4 5 5 Processor 6 | . . . . 11 11 11 9 8 7 14 15 15 2 . 6 6 6 6 6 5 9 5 5 5 5 5 5 5 7 15 Hackware 13 | . . . 5 . . . 8 9 21 7 7 7 1 . 9 12 12 12 12 24 27 27 27 27 27 27 26 25 22 16 Protection 5 | . . . 15 11 11 8 1 . . 2 . 2 11 7 5 6 6 6 6 2 4 5 5 8 10 6 5 1 8 6 Energy Gun 10 | . 27 28 15 11 11 16 18 19 19 22 16 19 20 23 10 . . . . 6 . . . . . . 6 3 1 3 Energy Cannon 6 | . . . . . . . . . . . 5 . . . 4 19 17 15 17 8 5 10 10 10 11 10 7 4 11 7 Impact Weapon 1 | . . . 4 11 11 . 6 7 2 . . 2 . . . . . . . . . . . . . . . . . . Naked Turns . | . . . . . . . . . . . . . . . . . . . . . . . . . . . . . . . Heaviest Build 148 | 11 28 30 49 41 61 62 67 67 64 63 67 63 80 76 88 88 97 97 103 120 111 115 115 117 112 110 148 138 130 129 Greatest Support 60 | 20 40 23 23 12 12 24 24 60 38 38 38 38 38 28 44 38 38 38 38 36 36 36 36 32 32 32 32 32 48 48 Greatest Overweight (x) 14 | . 1 2 4 3 5 5 5 5 2 1 1 1 2 2 14 2 2 2 9 11 3 3 4 3 6 6 5 5 8 2 Average Overweight (x) 2 | . . 1 2 3 3 4 3 3 1 1 1 1 1 2 2 2 2 2 5 3 2 3 2 2 3 3 3 2 3 1 Largest Inventory Capacity 25 | 8 15 15 15 15 20 20 20 20 20 20 20 20 20 20 20 20 20 20 20 20 20 20 20 20 20 20 25 25 20 20 Average Capacity 19 | 6 13 15 15 15 16 20 20 20 20 20 20 20 20 20 20 20 20 20 20 20 20 20 20 20 20 20 23 18 20 20 Most Carried 25 | 4 15 15 15 15 16 16 20 20 20 20 20 20 20 20 20 20 20 20 20 20 20 20 20 20 20 20 24 25 20 20 Average Carried 18 | 2 11 15 14 14 15 13 18 19 19 19 20 19 19 19 19 19 19 19 19 19 19 19 19 19 19 19 21 17 19 19 Final Capacity 25 | 8 15 15 15 15 20 20 20 20 20 20 20 20 20 20 20 20 20 20 20 20 20 20 20 20 20 20 25 20 20 20 Final Carried 24 | 4 15 15 13 15 16 13 19 19 20 20 20 20 20 20 20 20 20 19 20 20 20 20 20 20 19 20 24 18 20 16 Class Distribution -------------------- 23% | Mutant 14% | Wizard-Skirmisher 11% | Hacker-Mutant 9% | Wizard-Mutant 7% | Hacker-Skirmisher 6% | Gunner 4% | Wizard-Tank 3% | Scavenger-Mutant 3% | Tank 3% | Hacker-Assassin Dominant Class ---------------- Mutant | -10/Materials Scavenger-Mutant | -10/Mines Mutant | -9/Materials Mutant | -9/Mines Mutant | -9/Exiles Mutant | -8/Mines Mutant | -8/Materials Mutant | -8/Storage Hacker-Mutant | -7/Factory Skirmisher | -7/Lower Caves Mutant | -7/Lower Caves Mutant | -7/Zion Tank | -7/Deep Caves Gunner | -6/Proximity Caves Hacker-Assassin | -6/Factory Hacker-Mutant | -6/Lower Caves Hacker-Mutant | -6/Lower Caves Hacker-Assassin | -6/Data Miner Hacker-Skirmisher | -5/Proximity Caves Wizard-Skirmisher | -5/Factory Wizard-Tank | -5/Waste Wizard-Mutant | -5/Factory Wizard-Skirmisher | -5/Extension Wizard-Tank | -5/Cetus Wizard-Tank | -5/Archives Wizard-Skirmisher | -5/Hub_04(d) Wizard-Mutant | -4/Factory Wizard-Skirmisher | -4/Waste Wizard-Skirmisher | -4/Factory Machinist-Skirmisher | -4/Armory Resources | -11 -10 -10 -9 -9 -9 -8 -8 -8 -7 -7 -7 -7 -7 -6 -6 -6 -6 -6 -5 -5 -5 -5 -5 -5 -5 -5 -4 -4 -4 -4 ----------- Run | Scr Mat Min Mat Min Exi Min Mat Sto Fac Low Low Zio Dee Pro Fac Low Low Dat Pro Fac Was Fac Ext Cet Arc Hub Fac Was Fac Arm Matter Collected 10234 | 233 202 90 478 97 24 274 414 225 260 140 130 53 437 115 1396 176 306 . 465 867 300 80 215 80 15 50 85 530 1129 1368 Remotely 222 | . 202 20 . . . . . . . . . . . . . . . . . . . . . . . . . . . . Salvage Created 20052 | . 589 211 1657 336 . 499 1217 957 738 . 49 . 938 199 2440 95 105 . 602 2452 429 . 697 366 332 257 228 512 2233 1914 Parts 925 | . 35 10 101 22 . 20 69 53 25 . . . 17 14 118 5 13 . 20 111 1 . 34 16 8 8 12 1 132 80 Haulers Intercepted 10 | . . . 5 . . . 1 3 . . . . . . . . . . 1 . . . . . . . . . . . Recyclers Shooed 10 | . 2 . 1 . . . . 1 . . . . . . 3 . . . . 1 . . . . . . . . 2 . Parts Field Recycled . | . . . . . . . . . . . . . . . . . . . . . . . . . . . . . . . Retrieved Matter . | . . . . . . . . . . . . . . . . . . . . . . . . . . . . . . . Parts Self-Destructed 39 | . . . . . . . . . . 8 . . . 11 . 3 6 . 11 . . . . . . . . . . . Prevented 8 | . . . . . . . . . . 1 4 . . 3 . . . . . . . . . . . . . . . . Kills | -11 -10 -10 -9 -9 -9 -8 -8 -8 -7 -7 -7 -7 -7 -6 -6 -6 -6 -6 -5 -5 -5 -5 -5 -5 -5 -5 -4 -4 -4 -4 ------- Run | Scr Mat Min Mat Min Exi Min Mat Sto Fac Low Low Zio Dee Pro Fac Low Low Dat Pro Fac Was Fac Ext Cet Arc Hub Fac Was Fac Arm Combat Hostiles Destroyed 359 | . 11 4 34 8 . 18 28 13 12 . . . 49 6 40 4 7 . 9 34 2 . 7 3 3 3 3 3 26 32 Melee 8 | . . . 4 . . . . . . . . . . . . . . . . . . . . . . . . . 4 . Guns 147 | . 8 4 25 2 . 7 28 13 10 . . . 5 6 16 . . . . 10 . . . . . . 1 2 1 9 Cannons 65 | . . . . . . . . . . . . . . . 6 1 . . 4 10 1 . 2 2 2 3 2 . 19 13 AOE 106 | . 3 . 3 6 . 10 . . . . . . 37 . 14 3 7 . 4 10 1 . . . . . . 1 . 7 Classes Destroyed 24 | . 7 1 4 . . 1 1 . 1 . . . 4 . 2 . . . 1 1 1 . . . . . . . . . Worker 11 | . 1 . 1 . . . . 1 . . . . . . 1 . . . . 2 . . 1 . . 2 . . 2 . Builder 13 | . . . 2 . . . . 1 1 . . . . . 3 . . . . 2 . . . . . . 1 . 3 . Tunneler 3 | . . 1 . 1 . . . . . . . . . . . . . . . . . . 1 . . . . . . . Hauler 10 | . . . 5 . . . 1 3 . . . . . . . . . . 1 . . . . . . . . . . . Recycler 23 | . 3 . 1 3 . . 1 3 1 . . . . . 4 . . . . 5 . . 1 . . . . . 1 . Mechanic 3 | . 1 . . . . . . . . . . . . . 1 . . . . . . . . . . . . . . 1 Operator 11 | . 2 . 3 . . . 1 . . . . . . . 1 . . . . 1 . . . . 1 1 . . . 1 Watcher 21 | . 2 . 2 . . . 2 . 1 . . . . . 4 . . . . 3 . . 1 1 . . . . 2 3 Swarmer 89 | . 6 . 11 8 . 7 7 5 . . . . . 4 15 3 7 . . 10 . . . . . . . . . 6 Cutter 6 | . . . . . . . 6 . . . . . . . . . . . . . . . . . . . . . . . Grunt 94 | . 5 4 16 . . 7 8 3 8 . . . . . 10 . . . 6 15 . . 2 . . 3 . . 5 2 Brawler 3 | . . . . . . . . . . . . . . . 3 . . . . . . . . . . . . . . . Duelist 6 | . . . 1 . . 2 . . . . . . . . . . . . 1 . . . . . . . . . . 2 Sentry 33 | . . . 6 . . . 5 6 1 . . . . . 3 . . . 1 2 . . 3 . 3 . 1 . 1 1 Specialist 6 | . . . . . . . . . . . . . . . 2 . . . . . . . . . . . . . . 4 Hunter 16 | . . . . . . 2 2 . 1 . . . . . 2 . . . . 1 . . . . . . . . 5 3 Programmer 45 | . . . . . . . . . 2 . 1 . . 2 5 1 . . . 5 . . . . . . 2 . 14 13 Heavy 2 | . . . . . . . . . . . . . . . . . . . . 1 . . . . . . . . . 1 Behemoth 4 | . . . . . . . . . . . . . . . . . . . 1 . . . 2 . . . . . 1 . Compactor 5 | . . . . . . . . . . . . . . . . . . . . . 2 . . . . . . 3 . . Cetus Guard 3 | . . . . . . . . . . . . . . . . . . . . . . . . 3 . . . . . . Z-Light 6 | . . . . . . . . . . . . . 6 . . . . . . . . . . . . . . . . . Assembler 2 | . . . . . . . . . . . . . 2 . . . . . . . . . . . . . . . . . Assembled 40 | . . . . . . . . . . . . . 40 . . . . . . . . . . . . . . . . . Golem 2 | . . . . . . . . . . . . . 2 . . . . . . . . . . . . . . . . . Thug 2 | . . . . . . . . . . . . . . . . . . . . . . . . . . . . . 2 . Butcher 1 | . . . . . . . . . . . . . . . . . . . . . . . . . . . . . 1 . Best Kill Streak 39 | . 8 2 5 4 . 7 5 3 5 . . . 39 4 7 3 4 . 6 10 2 . 5 4 3 2 2 1 6 10 Combat Bots Only 37 | . 6 2 5 4 . 7 4 3 3 . . . 37 4 7 3 4 . 5 10 2 . 2 3 1 2 2 1 4 9 Max Kills in Single Turn 31 | . 2 2 3 3 . 3 2 1 2 . 1 . 31 1 4 3 2 . 3 6 1 . 1 1 1 1 1 1 2 8 Gunslinging 1 | . . 1 1 . . . . . 1 . . . . . 1 . . . . . . . . . . . . . . . Exploded 31 | . 1 . 1 3 . 3 . . . . . . 31 . 4 3 2 . 2 6 1 . . . . . . 1 . 7 Melee 1 | . . . 1 . . . . . . . . . . . . . . . . . . . . . . . . . 1 . Uniques/NPCs Destroyed 2 | . . . . . . . . . . . . . 1 . . . . . . . . . . 1 . . . . . . Z-Imprinter (-7/Deep Caves) A7 (-5/Cetus) Combat | -11 -10 -10 -9 -9 -9 -8 -8 -8 -7 -7 -7 -7 -7 -6 -6 -6 -6 -6 -5 -5 -5 -5 -5 -5 -5 -5 -4 -4 -4 -4 -------- Run | Scr Mat Min Mat Min Exi Min Mat Sto Fac Low Low Zio Dee Pro Fac Low Low Dat Pro Fac Was Fac Ext Cet Arc Hub Fac Was Fac Arm Damage Taken 26177 | . 361 120 1204 160 . 1381 1371 531 779 29 61 . 2490 181 3044 61 136 . 1329 3139 . 129 642 276 244 1340 220 235 2939 3775 Core 3548 | . 87 18 152 4 . 207 202 147 149 . . . 412 . 430 . . . 219 249 . . 18 36 . 55 29 134 270 730 Absorbed by Shields 328 | . . . . . . . . . . . . . . . . . . . . . . . 11 46 . . 156 . . 115 Reduced by Siege Mode 15 | . . . . . . . . . . . . . . . . . . . . . . . . . . . . . 15 . Redirected to Shielding 270 | . . . . . . . . . . . . . . . 270 . . . . . . . . . . . . . . . Regen/Repaired (Parts) 6838 | . . . 82 . . . 29 159 82 14 30 . 54 . 173 . . . . 851 . 694 9 18 69 188 950 7 2949 480 Core Remaining (%) 44 | 100 . 58 . . . 9 . 36 . . . . . 19 . . . . 23 . . . . . . 64 . . . . Volleys Fired 994 | . 50 11 93 6 . 38 69 30 34 1 19 . 33 7 126 20 11 . 20 90 5 9 14 7 9 17 33 18 106 118 Largest 3 | . 2 2 2 1 . 2 3 3 3 3 1 . 3 3 3 3 1 . 3 3 3 1 2 2 2 2 3 3 3 3 Hottest 275 | . 105 105 130 45 . 125 165 165 165 165 90 . 183 180 180 150 90 . 210 270 181 110 198 198 208 208 268 275 270 270 Shots Fired 2008 | . 93 22 176 6 . 69 150 68 93 3 20 . 80 21 249 22 11 . 35 212 15 9 26 13 18 28 55 43 203 268 Gun 1205 | . 89 22 176 4 . 64 150 68 93 3 2 . 77 21 175 . . . . 102 5 . . . . . 15 15 15 109 Cannon 765 | . . . . . . . . . . . 18 . . . 70 21 7 . 33 109 5 9 26 13 18 28 40 22 188 158 Launcher 38 | . 4 . . 2 . 5 . . . . . . 3 . 4 1 4 . 2 1 5 . . . . . . 6 . 1 Special . | . . . . . . . . . . . . . . . . . . . . . . . . . . . . . . . Kinetic 105 | . . . 20 . . 22 1 . . . . . . . . . . . . 10 5 . . . . 5 . . . 42 Thermal 1400 | . 89 22 86 . . 42 149 68 93 3 20 . 50 10 136 21 7 . 33 93 5 6 . . 5 14 52 37 168 191 Explosive 38 | . 4 . . 2 . 5 . . . . . . 3 . 4 1 4 . 2 1 5 . . . . . . 6 . 1 Electromagnetic 440 | . . . 70 4 . . . . . . . . 25 8 89 . . . . 108 . 3 26 13 13 9 3 . 35 34 Phasic 25 | . . . . . . . . . . . . . 2 3 20 . . . . . . . . . . . . . . . Robot Hit Streak 31 | . 9 9 11 2 . 20 31 12 16 . . . 18 3 13 3 1 . 7 15 4 1 6 6 18 12 11 12 18 18 Robot Miss Streak 11 | . 4 2 6 1 . 2 3 3 2 4 5 . 8 1 6 5 11 . 5 6 6 1 3 1 1 4 5 6 7 2 Penetration Max 1 | . . . . . . . . . . . . . . . . . . . . 1 . . . . . . . . . . Secondary Targets 26 | . 1 1 5 . . 2 5 2 2 . . . 3 . 3 . . . . 2 . . . . . . . . . . Max Gunslinging Chain 1 | . 1 1 1 . . 1 1 1 1 . . . 1 . 1 . . . . 1 . . . . . . . . . . Shots Hit Robots 1313 | . 58 17 153 9 . 56 108 53 72 . . . 63 9 151 4 2 1 26 132 9 2 23 17 16 14 18 28 111 161 Core Hits 817 | . 32 9 68 10 . 28 50 25 27 . 1 . 115 6 88 4 15 . 37 91 9 . 9 12 8 13 8 15 57 80 Critical Kills 10 | . . . 1 1 . . 1 1 . . . . . . . . . . . 1 . . . . . . . . . 5 Critical Parts Destroyed 14 | . . . 4 1 . 1 . . 1 . . . . . . . . . . . . . . . . . . . . 7 Critical Strikes 58 | . 2 . 6 2 . 3 6 2 3 . . . 1 1 3 . . . 3 4 . . 1 2 . . 2 2 3 12 Burn 18 | . 2 . 1 . . 2 5 1 2 . . . 1 . . . . . . . . . . . . . 2 2 . . Meltdown 3 | . . . . . . . . . . . . . . . . . . . . 1 . . . . . . . . . 2 Destroy 11 | . . . . . . 1 . . . . . . . . . . . . . . . . . . . . . . . 10 Corrupt 9 | . . . . . . . . . . . . . . 1 3 . . . . 3 . . 1 1 . . . . . . Smash 10 | . . . 5 2 . . 1 1 1 . . . . . . . . . . . . . . . . . . . . . Impale 7 | . . . . . . . . . . . . . . . . . . . 3 . . . . 1 . . . . 3 . Melee Attacks 227 | . . . 49 4 . . 10 25 22 1 4 1 22 . 33 . . 1 18 1 . . 7 7 . . . . 21 1 Impact 136 | . . . 49 4 . . 10 25 22 1 4 1 20 . . . . . . . . . . . . . . . . . Slashing . | . . . . . . . . . . . . . . . . . . . . . . . . . . . . . . . Piercing 90 | . . . . . . . . . . . . . 2 . 33 . . . 18 1 . . 7 7 . . . . 21 1 Sneak Attacks 41 | . . . 5 4 . . 1 9 1 . . . . . 7 . . 1 . . . . 3 7 . . . . 2 1 Combat Hostiles 1 | . . . . . . . . . . . . . . . . . . . . . . . . . . . . . 1 . Follow-up Attacks 3 | . . . . . . . . . . . . . 3 . . . . . . . . . . . . . . . . . Damage Inflicted 50413 | . 1014 227 3288 572 . 1685 2221 1637 1533 22 49 . 4577 281 6090 245 410 . 1902 5418 1429 73 1058 859 657 930 501 3500 4278 5957 Guns 17072 | . 724 227 1948 49 . 961 2115 890 1390 22 49 . 1119 281 2876 . . . . 1813 75 . . . . . 207 234 192 1900 Cannons 13998 | . . . . . . . . . . . . . . . 1240 104 . . 408 2111 68 73 743 460 501 670 294 514 3653 3159 Explosions 14174 | . 290 . 319 332 . 724 . . . . . . 2838 . 1432 141 410 . 942 1494 1286 . . . 156 260 . 2752 . 798 Melee 5169 | . . . 1021 191 . . 106 747 143 . . . 620 . 542 . . . 552 . . . 315 399 . . . . 433 100 Ramming . | . . . . . . . . . . . . . . . . . . . . . . . . . . . . . . . Kinetic 1331 | . . . 203 . . 329 18 . . . . . . . . . . . . 263 75 . . . . 142 . . . 301 Thermal 22559 | . 724 227 1149 152 . 632 2097 890 1390 22 49 . 711 91 2831 104 . . 408 2258 68 . . . 324 255 440 748 2985 4004 Explosive 12321 | . 290 . . 180 . 724 . . . . . . 2838 . 1020 141 410 . 942 940 1286 . . . . . . 2752 . 798 Electromagnetic 8613 | . . . 915 49 . . . . . . . . 367 108 1400 . . . . 1957 . 73 743 460 333 533 61 . 860 754 Impact 2828 | . . . 1021 191 . . 106 747 143 . . . 620 . . . . . . . . . . . . . . . . . Slashing . | . . . . . . . . . . . . . . . . . . . . . . . . . . . . . . . Piercing 2341 | . . . . . . . . . . . . . . . 542 . . . 552 . . . 315 399 . . . . 433 100 Phasic 420 | . . . . . . . . . . . . . 41 82 297 . . . . . . . . . . . . . . . Highest Corruption 10 | . . . 2 2 2 2 . 6 1 . 1 . . . 4 . . . . 1 . . . . . 3 4 . 6 10 Average Corruption 3 | . . . 2 2 2 2 . 6 1 . 1 . . . 3 . . . . 1 . . . . . 1 2 . 2 5 Corruption Purged 31 | . . . . . . . . . 1 . 1 . . . 6 . . . . 2 . . . . . . 4 . 13 4 Corruption Blocked 5 | . . . . . . . . . . . . . . . . . . . . 5 . . . . . . . . . . Effects 106 | . . . 18 15 5 6 . . . . 1 . . . 9 . . . . 1 . . . . . . 1 . 12 38 Message Errors 27 | . . . 9 2 1 . . . . . . . . . 3 . . . . . . . . . . . . . 3 9 Matter Fused 28 | . . . 3 6 2 1 . . . . . . . . 1 . . . . 1 . . . . . . . . 7 7 Heat Flow Errors 4 | . . . 1 1 . . . . . . . . . . . . . . . . . . . . . . . . . 2 Energy Discharges 9 | . . . . 2 1 1 . . . . . . . . . . . . . . . . . . . . 1 . . 4 Parts Rejected 2 | . . . . . . 1 . . . . . . . . . . . . . . . . . . . . . . . 1 Data Loss (minor) 21 | . . . 3 2 1 2 . . . . . . . . 3 . . . . . . . . . . . . . 2 8 Data Loss (major) 6 | . . . . 1 . . . . . . . . . . 2 . . . . . . . . . . . . . . 3 Misfires 6 | . . . 2 . . . . . . . 1 . . . . . . . . . . . . . . . . . . 3 Alerts 1 | . . . . 1 . . . . . . . . . . . . . . . . . . . . . . . . . . Weapon Failures 2 | . . . . . . 1 . . . . . . . . . . . . . . . . . . . . . . . 1 Overload Shots 17 | . . . . . . . . . . . . . . . 16 . . . . 1 . . . . . . . . . . Overflow Damage 1581 | . 16 . 223 85 . 5 2 147 63 . . . 169 . 298 . . . 38 121 . . 154 . . 33 . . 73 154 Projectiles 412 | . . . . . . . . . . . . . . . 101 . . . 38 70 . . 33 . . 33 . . 73 64 Explosions 136 | . 16 . . . . 5 . . . . . . 36 . 28 . . . . 51 . . . . . . . . . . Melee 1033 | . . . 223 85 . . 2 147 63 . . . 133 . 169 . . . . . . . 121 . . . . . . 90 Knockbacks 10 | . . . 2 2 . . . 1 2 . . . 1 . . . . . . . . . . . . 2 . . . . Impact 8 | . . . 2 2 . . . 1 2 . . . 1 . . . . . . . . . . . . . . . . . Kinetic 1 | . . . . . . . . . . . . . . . . . . . . . . . . . . 1 . . . . Secondary 1 | . . . . . . . . . . . . . . . . . . . . . . . . . . 1 . . . . Self-Inflicted Damage 796 | . 39 . 67 80 . 70 . . . . . . . . 72 . 30 . 45 237 . . . . . 142 . 14 . . Shots 27 | . 1 . 3 3 . 2 . . . . . . . . 3 . 2 . 2 8 . . . . . 2 . 1 . . Rammed . | . . . . . . . . . . . . . . . . . . . . . . . . . . . . . . . Targets Rammed . | . . . . . . . . . . . . . . . . . . . . . . . . . . . . . . . Kicked . | . . . . . . . . . . . . . . . . . . . . . . . . . . . . . . . Crushed . | . . . . . . . . . . . . . . . . . . . . . . . . . . . . . . . Highest Temperature 586 | . 412 261 229 238 . 96 530 255 72 6 112 . 534 164 380 132 176 . 108 409 450 280 165 189 252 259 199 197 521 586 Average Temperature 103 | . 121 93 42 138 . 29 156 70 19 4 38 . 178 82 127 53 64 . 40 68 245 104 46 87 103 91 106 67 113 112 Received Heat Transfer 5337 | . 96 84 315 . . 477 477 189 270 . 18 . 687 . 780 . . . 207 813 . 18 99 31 27 396 12 . 244 97 Effects 44 | . 4 1 . . . . 4 . . . . . 7 . 1 . . . . 4 3 . . . . . . . 7 13 Shutdowns 9 | . . . . . . . . . . . . . . . . . . . . . 2 . . . . . . . 4 3 Energy Bleed 8 | . 2 . . . . . 1 . . . . . 1 . 1 . . . . 1 1 . . . . . . . 1 . Interference 17 | . 2 1 . . . . 1 . . . . . 2 . . . . . . 3 . . . . . . . . . 8 Short Circuit 5 | . . . . . . . 2 . . . . . 2 . . . . . . . . . . . . . . . 1 . Damage (minor) 4 | . . . . . . . . . . . . . 2 . . . . . . . . . . . . . . . 1 1 Damage (core) 1 | . . . . . . . . . . . . . . . . . . . . . . . . . . . . . . 1 Siege Activations 1 | . . . . . . . . . . . . . . . . . . . . . . . . . . . . . 1 . Total Turns 16 | . . . . . . . . . . . . . . . . . . . . . . . . . . . . . 16 . Longest Duration 16 | . . . . . . . . . . . . . . . . . . . . . . . . . . . . . 16 . Robots Corrupted 18 | . . . 3 . . . . . . . . . 2 . 4 . . . . 3 . . 3 1 1 . . . 1 . Combat Hostiles 17 | . . . 2 . . . . . . . . . 2 . 4 . . . . 3 . . 3 1 1 . . . 1 . Parts Fried 75 | . . . 10 1 . . 2 2 4 . . . 14 . 14 . . . . 12 . . 3 5 3 1 . . 2 2 Impact Corruptions 33 | . . . 11 4 . . 1 6 3 . . . 8 . . . . . . . . . . . . . . . . . Robots Melted 6 | . . . . . . 1 . . 1 . . . . . . . . . . 1 . . . . . . . . . 3 Combat Hostiles 6 | . . . . . . 1 . . 1 . . . . . . . . . . 1 . . . . . . . . . 3 Parts Melted 77 | . 4 . 3 . . 7 8 4 4 . . . . . 7 1 . . 1 3 . . . . . 2 4 . 9 20 Heat Transferred 33044 | . 2007 521 2329 150 . 1443 4403 1739 2775 37 74 . 894 74 3098 124 . . 620 2942 100 . . . 350 376 885 1442 2849 3812 Parts Sabotaged . | . . . . . . . . . . . . . . . . . . . . . . . . . . . . . . . Parts Stolen . | . . . . . . . . . . . . . . . . . . . . . . . . . . . . . . . Parts Stripped . | . . . . . . . . . . . . . . . . . . . . . . . . . . . . . . . Power Chain Reactions 14 | . . . 6 2 . . . . . . . . . . 2 . . . . 3 . . . . 1 . . . . . Missiles Intercepted . | . . . . . . . . . . . . . . . . . . . . . . . . . . . . . . . Alert | -11 -10 -10 -9 -9 -9 -8 -8 -8 -7 -7 -7 -7 -7 -6 -6 -6 -6 -6 -5 -5 -5 -5 -5 -5 -5 -5 -4 -4 -4 -4 ------- Run | Scr Mat Min Mat Min Exi Min Mat Sto Fac Low Low Zio Dee Pro Fac Low Low Dat Pro Fac Was Fac Ext Cet Arc Hub Fac Was Fac Arm Peak Influence 1312 | . 273 136 864 545 . 339 381 705 346 . . . . . 420 . . . . 459 307 1312 372 214 243 528 248 80 266 494 Initial 336 | . . 31 . 336 . . 81 154 197 . . . . . . . . . . . 154 62 324 112 85 84 248 10 . 53 Average 209 | . 130 67 413 365 . 174 142 433 166 . . . . . 228 . . . . 102 243 807 87 135 191 206 105 20 97 226 Maximum Alert Level 4 | . 1 . 3 2 . 1 1 3 1 . . . . . 2 . . . . 2 1 4 1 1 1 2 1 . 1 2 Low Security (%) 54 | 100 74 100 11 9 . 53 67 5 63 . . . . . 37 . . . . 81 18 2 87 67 42 41 69 100 84 34 Level 1 31 | . 25 . 25 79 . 46 32 27 36 . . . . . 54 . . . . 8 81 1 12 32 57 52 30 . 15 60 Level 2 11 | . . . 54 11 . . . 66 . . . . . . 7 . . . . 10 . 37 . . . 5 . . . 5 Level 3 1 | . . . 8 . . . . . . . . . . . . . . . . . . 31 . . . . . . . . Level 4 . | . . . . . . . . . . . . . . . . . . . . . . 26 . . . . . . . . Level 5 . | . . . . . . . . . . . . . . . . . . . . . . . . . . . . . . . High Security . | . . . . . . . . . . . . . . . . . . . . . . . . . . . . . . . Max Security . | . . . . . . . . . . . . . . . . . . . . . . . . . . . . . . . Squads Dispatched 96 | . 4 . 8 . . . 5 2 5 . . . . . 21 . . . . 10 . 8 . . . 4 3 . 13 13 Investigation 29 | . 2 . 3 . . . . 1 1 . . . . . 7 . . . . 7 . 1 . . . 1 1 . 5 . Extermination 26 | . . . . . . . . . 1 . . . . . 8 . . . . 2 . . . . . . 2 . 7 6 Reinforcement 36 | . 2 . 5 . . . 5 1 3 . . . . . 4 . . . . 1 . 4 . . . 3 . . 1 7 Assault 2 | . . . . . . . . . . . . . . . 1 . . . . . . 1 . . . . . . . . Garrison 3 | . . . . . . . . . . . . . . . 1 . . . . . . 2 . . . . . . . . Intercept . | . . . . . . . . . . . . . . . . . . . . . . . . . . . . . . . Searches Triggered . | . . . . . . . . . . . . . . . . . . . . . . . . . . . . . . . Data Miner Redirects 9 | . . . . . . . . . . . . . . . . . . . . 5 . . . . . . 1 . 3 . Construction Impeded 3 | . . . . . . . . . 2 . . . . . . . . . . . . . . . . 1 . . . . Haulers Reinforced 1 | . . . . . . . . . . . . . . . . . . . . . . . . . . 1 . . . . Active Scanning Responses . | . . . . . . . . . . . . . . . . . . . . . . . . . . . . . . . Cargo Convoy Interrupts 1 | . . . . . . . . . . . . . . . . . . . . . . 1 . . . . . . . . Stealth | -11 -10 -10 -9 -9 -9 -8 -8 -8 -7 -7 -7 -7 -7 -6 -6 -6 -6 -6 -5 -5 -5 -5 -5 -5 -5 -5 -4 -4 -4 -4 --------- Run | Scr Mat Min Mat Min Exi Min Mat Sto Fac Low Low Zio Dee Pro Fac Low Low Dat Pro Fac Was Fac Ext Cet Arc Hub Fac Was Fac Arm Distress Signals 24 | . 2 . 2 . . . 1 5 3 . . . . . 3 . . . . 1 . 1 1 1 . 1 . . . 3 Communications Jammed 4 | . . . . . . . . . . . . . . . . . . . . . . . . . . . . . 4 . Distress Signals 4 | . . . . . . . . . . . . . . . . . . . . . . . . . . . . . 4 . Times Spotted 566 | . 23 4 64 8 . 19 40 26 18 4 2 . 42 6 51 4 3 . 9 47 2 27 24 5 4 19 5 9 50 51 Peak Tracking Total 37 | . 6 2 8 4 . 7 7 8 3 4 1 . 37 4 5 3 2 . 5 10 2 8 4 5 1 8 2 3 6 11 Tactical Retreats 30 | . 1 . 8 . . 1 1 1 2 . . . 2 . 3 . 1 . . 1 . . 4 . . 1 . 1 3 . Traps | -11 -10 -10 -9 -9 -9 -8 -8 -8 -7 -7 -7 -7 -7 -6 -6 -6 -6 -6 -5 -5 -5 -5 -5 -5 -5 -5 -4 -4 -4 -4 ------- Run | Scr Mat Min Mat Min Exi Min Mat Sto Fac Low Low Zio Dee Pro Fac Low Low Dat Pro Fac Was Fac Ext Cet Arc Hub Fac Was Fac Arm Traps Triggered 21 | . . . 1 . . . . . . . . . . . 5 . . . . 1 . . 6 . . 1 1 . 4 2 Indirectly 1 | . . . . . . . . . . . . . . . . . . . . . . . . . . 1 . . . . Trap Hack Attempts . | . . . . . . . . . . . . . . . . . . . . . . . . . . . . . . . Triggered . | . . . . . . . . . . . . . . . . . . . . . . . . . . . . . . . Disarmed 11 | . 3 . . . . . . . . . . . . . . . . . . . . . . . . . . . 8 . Reprogrammed 19 | . . . . . . . . . . . . . . . . . . . . 7 . . . . . . 6 . 6 . Reused 4 | . . . . . . . . . . . . . . . 1 . . . . 2 . . . . . . . . 1 . Traps Extracted . | . . . . . . . . . . . . . . . . . . . . . . . . . . . . . . . Installed 1 | . . . . . . . . . . . . . . . 1 . . . . . . . . . . . . . . . Triggered 7 | . . . 1 . . . . . . . 1 . . . 1 . . . . 2 . 1 . . . . . . 1 . Most Traps Carried 1 | . . . . . . . . . . . . . . 1 1 . . . . . . . . . . . . . . . Machines | -11 -10 -10 -9 -9 -9 -8 -8 -8 -7 -7 -7 -7 -7 -6 -6 -6 -6 -6 -5 -5 -5 -5 -5 -5 -5 -5 -4 -4 -4 -4 ---------- Run | Scr Mat Min Mat Min Exi Min Mat Sto Fac Low Low Zio Dee Pro Fac Low Low Dat Pro Fac Was Fac Ext Cet Arc Hub Fac Was Fac Arm Machines Disabled 71 | . . . 2 6 . . . 2 1 . . . 4 . 10 . . . . 4 . 15 1 2 2 13 . . 2 7 Max in Single Turn 8 | . . . 1 4 . . . . . . . . 1 . 2 . . . . 1 . . 1 . 1 8 . . 1 1 Garrison Access 11 | . . . . . . . . 1 1 . . . . . 3 . . . . 2 . 1 . . . 1 1 . 1 . Network Hub 2 | . . . . . . . . . . . . . . . . . . . . . . . . . . 2 . . . . Energy Cycler 1 | . . . . . . . . . . . . . . . . . . . . . . . . . . . . . . 1 Machines Sabotaged . | . . . . . . . . . . . . . . . . . . . . . . . . . . . . . . . Garrisons Compromised 1 | . . . . . . . . . . . . . . . . . . . . . . 1 . . . . . . . . Overloaded Fab Kills . | . . . . . . . . . . . . . . . . . . . . . . . . . . . . . . . Hacking | -11 -10 -10 -9 -9 -9 -8 -8 -8 -7 -7 -7 -7 -7 -6 -6 -6 -6 -6 -5 -5 -5 -5 -5 -5 -5 -5 -4 -4 -4 -4 --------- Run | Scr Mat Min Mat Min Exi Min Mat Sto Fac Low Low Zio Dee Pro Fac Low Low Dat Pro Fac Was Fac Ext Cet Arc Hub Fac Was Fac Arm Machines Accessed 164 | . 7 1 9 . 1 . 10 13 10 3 . . . . 27 . . 3 . 23 . 8 4 1 . 8 6 . 23 7 Terminals 84 | . 5 1 5 . . . 6 10 4 . . . . . 13 . . . . 12 . 3 3 1 . 7 1 . 10 3 Fabricators 24 | . . . . . . . . . 3 . . . . . 5 . . . . 5 . 3 . . . . 1 . 5 2 Repair Stations 17 | . . . 1 . . . 2 1 1 . . . . . 2 . . . . 2 . 1 1 . . . 1 . 4 1 Recycling Units 11 | . 2 . 2 . . . . 1 . . . . . . 1 . . . . 1 . . . . . . 1 . 2 1 Scanalyzers 10 | . . . 1 . . . 2 . 1 . . . . . 3 . . . . 1 . . . . . . 1 . 1 . Garrison Access 11 | . . . . . . . . 1 1 . . . . . 3 . . . . 2 . 1 . . . 1 1 . 1 . Total Hacks 655 | . 18 2 25 . 1 . 27 27 35 6 . . . . 110 . . 24 . 91 . 38 20 1 . 37 36 . 121 36 Successful 535 | . 11 . 19 . 1 . 20 20 29 6 . . . . 74 . . 24 . 81 . 35 18 1 . 31 30 . 110 25 Failed 118 | . 7 2 6 . . . 7 7 6 . . . . . 36 . . . . 9 . 3 2 . . 6 6 . 10 11 Catastrophic 11 | . 1 . . . . . . . 1 . . . . . 6 . . . . . . . . . . . 1 . 1 1 Database Lockouts 2 | . . . . . . . . . . . . . . . . . . . . 1 . . . . . . . . 1 . Manual 249 | . 12 . 10 . . . 9 5 7 . . 5 . . 39 . . . . 33 . 14 12 1 . 21 16 . 41 24 Terminals 336 | . 13 2 13 . . . 18 21 12 . . . . . 48 . . . . 44 . 17 18 1 . 36 17 . 62 14 Fabricators 102 | . . . . . . . . . 10 . . . . . 25 . . . . 20 . 8 . . . . 4 . 21 14 Repair Stations 78 | . . . 2 . . . 3 2 6 . . . . . 7 . . . . 13 . 12 2 . . . 4 . 25 2 Recycling Units 32 | . 5 . 2 . . . . 2 . . . . . . 4 . . . . 5 . . . . . . 4 . 4 6 Scanalyzers 63 | . . . 8 . . . 6 . 6 . . . . . 22 . . . . 7 . . . . . . 6 . 8 . Garrison Access 13 | . . . . . . . . 2 1 . . . . . 4 . . . . 2 . 1 . . . 1 1 . 1 . Terminal Hacks 218 | . 5 . 4 . 1 . 7 13 5 6 . . . . 18 . . 24 . 28 . 13 14 1 . 23 7 . 45 4 Record 17 | . . . . . 1 . . 1 . 4 . . . . . . . 11 . . . . . . . . . . . . Part Schematic 27 | . 2 . . . . . . . 1 . . . . . 2 . . 10 . 3 . 1 . . . 2 1 . 5 . Robot Schematic 6 | . . . . . . . . . 1 . . . . . . . . . . 2 . . . . . 1 . . 2 . Robot Analysis 10 | . 1 . . . . . . . . . . . . . . . . . . 1 . . 2 . . 1 . . 5 . Prototype ID Bank 22 | . . . 2 . . . . 2 1 . . . . . 1 . . 3 . 3 . 1 1 . . 2 . . 6 . Open Door 7 | . . . . . . . . 4 . 2 . . . . . . . . . . . . . 1 . . . . . . Level Access Points 1 | . . . . . . . . . . . . . . . . . . . . . . . . . . 1 . . . . Branch Access Points 9 | . . . 1 . . . 1 . 1 . . . . . 1 . . . . 1 . 2 . . . . . . 2 . Machine Index 6 | . . . . . . . . . . . . . . . 1 . . . . 1 . 1 1 . . 1 . . 1 . Terminal Index 3 | . . . . . . . . . . . . . . . . . . . . . . . 1 . . 1 1 . . . Scanalyzer Index 2 | . . . . . . . . . . . . . . . 1 . . . . . . . . . . . 1 . . . Alert Level 10 | . . . . . . . 1 . . . . . . . 2 . . . . 1 . 1 1 . . 1 . . 2 1 Unreport Threat 31 | . . . . . . . 2 2 1 . . . . . 3 . . . . 4 . 4 5 . . 3 . . 6 1 Locate Traps 16 | . . . . . . . 2 2 . . . . . . 1 . . . . 1 . . 2 . . 2 1 . 4 1 Disarm Traps 3 | . 1 . . . . . . . . . . . . . . . . . . . . . . . . . . . 2 . Reprogram Traps 4 | . . . . . . . . . . . . . . . . . . . . 2 . . . . . . 1 . 1 . Dispatch Records 1 | . . . . . . . . . . . . . . . . . . . . . . . . . . . . . 1 . Recall Investigation 4 | . . . . . . . . . . . . . . . . . . . . 1 . . . . . . . . 3 . Recall Extermination 5 | . . . . . . . . . . . . . . . 2 . . . . 1 . . . . . . . . 1 1 Recall Reinforcements 2 | . . . . . . . . . . . . . . . . . . . . . . . . . . 2 . . . . Recall Assault 1 | . . . . . . . . . . . . . . . . . . . . . . 1 . . . . . . . . Hauler Manifests 4 | . . . 1 . . . 1 . . . . . . . 1 . . . . 1 . . . . . . . . . . Registered Components 2 | . . . . . . . . . . . . . . . . . . . . 1 . . . . . . 1 . . . Registered Prototypes 1 | . . . . . . . . . . . . . . . . . . . . . . . . . . 1 . . . . Zone Layout 24 | . 1 . . . . . . 2 . . . . . . 3 . . . . 5 . 2 1 . . 5 1 . 4 . Fabricator Hacks 52 | . . . . . . . . . 7 . . . . . 11 . . . . 12 . 5 . . . . 3 . 11 3 Network Status 8 | . . . . . . . . . 1 . . . . . 1 . . . . 2 . 1 . . . . 1 . 1 1 Load Schematic 23 | . . . . . . . . . 3 . . . . . 7 . . . . 6 . 1 . . . . 1 . 5 . Build 21 | . . . . . . . . . 3 . . . . . 3 . . . . 4 . 3 . . . . 1 . 5 2 Repair Station Hacks 76 | . . . 2 . . . 3 2 5 . . . . . 6 . . . . 13 . 12 2 . . . 4 . 25 2 Scan Component 38 | . . . 1 . . . 2 1 3 . . . . . 3 . . . . 6 . 6 1 . . . 2 . 12 1 Repair 36 | . . . 1 . . . 1 1 2 . . . . . 3 . . . . 6 . 6 1 . . . 2 . 12 1 Refit 2 | . . . . . . . . . . . . . . . . . . . . 1 . . . . . . . . 1 . Recycling Unit Hacks 12 | . 2 . . . . . . 2 . . . . . . 1 . . . . 2 . . . . . . 1 . 2 2 Report Inventory 8 | . 1 . . . . . . 1 . . . . . . 1 . . . . 1 . . . . . . 1 . 2 1 Retrieve Components 4 | . 1 . . . . . . 1 . . . . . . . . . . . 1 . . . . . . . . . 1 Scanalyzer 61 | . . . 8 . . . 5 . 6 . . . . . 21 . . . . 7 . . . . . . 6 . 8 . Insert Component 24 | . . . 2 . . . 3 . 3 . . . . . 9 . . . . 3 . . . . . . 2 . 2 . Analyze 37 | . . . 6 . . . 2 . 3 . . . . . 12 . . . . 4 . . . . . . 4 . 6 . Garrison Access Hacks 10 | . . . . . . . . 1 1 . . . . . 2 . . . . 2 . 1 . . . 1 1 . 1 . Seal Access 10 | . . . . . . . . 1 1 . . . . . 2 . . . . 2 . 1 . . . 1 1 . 1 . Unauthorized Hacks 106 | . 4 . 5 . . . 5 2 5 . . . . . 15 . . . . 17 . 4 2 . . 7 8 . 18 14 Terminals 54 | . 2 . 3 . . . 5 2 2 . . . . . 5 . . . . 9 . 2 2 . . 7 4 . 7 4 Track 6 | . . . . . . . . . . . . . . . . . . . . 1 . . . . . 1 1 . 3 . Assimilate 9 | . 1 . . . . . 1 1 . . . . . . 1 . . . . 2 . . . . . 2 . . . 1 Botnet 23 | . 1 . 2 . . . 3 1 2 . . . . . 3 . . . . 3 . 1 1 . . 1 1 . 2 2 Disrupt 6 | . . . . . . . . . . . . . . . . . . . . 2 . . . . . 2 1 . 1 . Operators 10 | . . . 1 . . . 1 . . . . . . . 1 . . . . 1 . 1 1 . . 1 1 . 1 1 Fabricators 32 | . . . . . . . . . 3 . . . . . 6 . . . . 5 . 2 . . . . 1 . 9 6 Report 3 | . . . . . . . . . . . . . . . . . . . . . . . . . . . . . 1 2 Prioritize 14 | . . . . . . . . . 1 . . . . . 2 . . . . 4 . . . . . . 1 . 4 2 Liberate 6 | . . . . . . . . . 1 . . . . . . . . . . . . 1 . . . . . . 2 2 Fabnet 1 | . . . . . . . . . . . . . . . 1 . . . . . . . . . . . . . . . Haulers 2 | . . . . . . . . . . . . . . . . . . . . . . 1 . . . . . . 1 . Recompile 6 | . . . . . . . . . 1 . . . . . 3 . . . . 1 . . . . . . . . 1 . Repair Stations . | . . . . . . . . . . . . . . . . . . . . . . . . . . . . . . . Recycling Units 19 | . 2 . 2 . . . . . . . . . . . 3 . . . . 3 . . . . . . 3 . 2 4 Monitor 1 | . . . . . . . . . . . . . . . . . . . . . . . . . . . . . . 1 Reject 5 | . . . . . . . . . . . . . . . 1 . . . . 1 . . . . . . 1 . 1 1 Recyclers 4 | . . . . . . . . . . . . . . . 1 . . . . 1 . . . . . . 1 . . 1 Mask 5 | . . . . . . . . . . . . . . . 1 . . . . 1 . . . . . . 1 . 1 1 Tunnel 4 | . 2 . 2 . . . . . . . . . . . . . . . . . . . . . . . . . . . Scanalyzers . | . . . . . . . . . . . . . . . . . . . . . . . . . . . . . . . Garrison Access 1 | . . . . . . . . . . . . . . . 1 . . . . . . . . . . . . . . . Jam 1 | . . . . . . . . . . . . . . . 1 . . . . . . . . . . . . . . . Data Cores Recovered 1 | . . . . . . . . . . . . . . . . . . . . . . . 1 . . . . . . . Used 1 | . . . . . . . . . . . . . . . . . . . . . . . 1 . . . . . . . Hacking Detections 116 | . 6 1 7 . . . 10 8 7 . . . . . 22 . . . . 18 . 5 3 . . 6 3 . 16 4 Full Trace Events 14 | . 1 . . . . . . . . . . . . . 3 . . . . 4 . 1 . . . . 1 . 4 . Feedback Events . | . . . . . . . . . . . . . . . . . . . . . . . . . . . . . . . Feedback Blocked . | . . . . . . . . . . . . . . . . . . . . . . . . . . . . . . . Robot Schematics Acquired 10 | . . . . . . . . . 1 . . 4 . . . . . . . 2 . . . . . 1 . . 2 . Robots Built 4 | . . . . . . . . . 2 . . . . . . . . . . . . 2 . . . . . . . . Authchips 1 | . . . . . . . . . 1 . . . . . . . . . . . . . . . . . . . . . Time 89 | . . . . . . . . . 33 . . . . . . . . . . . . 56 . . . . . . . . Total Robot Build Rating 20 | . . . . . . . . . 8 . . . . . . . . . . . . 12 . . . . . . . . Part Schematics Acquired 62 | . 2 . 1 . . . 2 . 4 . . 15 . . 9 . . 10 . 6 . 1 . . . 2 3 . 7 . Parts Built 24 | . . . . . . . . . 3 . . . . . 3 . . . . 4 . 3 . . . . 1 . 7 3 Authchips 6 | . . . . . . . . . 1 . . . . . 3 . . . . 1 . . . . . . . . 1 . Time 1033 | . . . . . . . . . 110 . . . . . 232 . . . . 201 . 116 . . . . 12 . 272 90 Total Part Build Rating 159 | . . . . . . . . . 14 . . . . . 21 . . . . 29 . 21 . . . . 1 . 48 25 Parts Repaired 36 | . . . 1 . . . 1 1 2 . . . . . 3 . . . . 6 . 6 1 . . . 2 . 12 1 Time 1391 | . . . 32 . . . 76 44 35 . . . . . 232 . . . . 235 . 199 25 . . . 70 . 393 50 Parts Recycled . | . . . . . . . . . . . . . . . . . . . . . . . . . . . . . . . Recycled Matter . | . . . . . . . . . . . . . . . . . . . . . . . . . . . . . . . Retrieved Matter . | . . . . . . . . . . . . . . . . . . . . . . . . . . . . . . . Retrieved Components 27 | . 10 . . . . . . 4 . . . . . . . . . . . 10 . . . . . . . . . 3 Parts Scanalyzed 21 | . . . 2 . . . 2 . 3 . . . . . 7 . . . . 3 . . . . . . 2 . 2 . Part Schematics Acquired 20 | . . . 1 . . . 2 . 3 . . . . . 7 . . . . 3 . . . . . . 2 . 2 . Parts Damaged 3 | . . . . . . . . . . . . . . . 3 . . . . . . . . . . . . . . . Bothacking | -11 -10 -10 -9 -9 -9 -8 -8 -8 -7 -7 -7 -7 -7 -6 -6 -6 -6 -6 -5 -5 -5 -5 -5 -5 -5 -5 -4 -4 -4 -4 ------------ Run | Scr Mat Min Mat Min Exi Min Mat Sto Fac Low Low Zio Dee Pro Fac Low Low Dat Pro Fac Was Fac Ext Cet Arc Hub Fac Was Fac Arm Used RIF Installer . | . . . . . . . . . . . . . . . . . . . . . . . . . . . . . . . Robots Hacked 4 | . . . . . . . . . . . . . . . . . . 1 . . . 2 1 . . . . . . . Non-combat . | . . . . . . . . . . . . . . . . . . . . . . . . . . . . . . . Combat 4 | . . . . . . . . . . . . . . . . . . 1 . . . 2 1 . . . . . . . Robot Hacks Applied 1 | . . . . . . . . . . . . . . . . . . 1 . . . . . . . . . . . . parse_system 1 | . . . . . . . . . . . . . . . . . . 1 . . . . . . . . . . . . Relay Couplers Released 8 | . . . . . . . . . . . . . . . . . . . . 4 . . . . . . . . 4 . Programmers 8 | . . . . . . . . . . . . . . . . . . . . 4 . . . . . . . . 4 . Fabnet Peak Effective % 3 | . . . . . . . . . . . . . . . . . . . 3 3 3 3 3 3 3 3 1 1 1 1 Autooverrided 3 | . . . . . . . . . . . . . . . . . . . . . . 2 1 . . . . . . . Robots Rewired 13 | . . . . . . . . . . . . . . . . . . . . . . . 8 . . . . . 2 3 Allies Hacked 4 | . . . . . . . . . 1 . . . . . . . . . . . . 2 . . . . . . . 1 Hacks Repelled . | . . . . . . . . . . . . . . . . . . . . . . . . . . . . . . . Allies | -11 -10 -10 -9 -9 -9 -8 -8 -8 -7 -7 -7 -7 -7 -6 -6 -6 -6 -6 -5 -5 -5 -5 -5 -5 -5 -5 -4 -4 -4 -4 -------- Run | Scr Mat Min Mat Min Exi Min Mat Sto Fac Low Low Zio Dee Pro Fac Low Low Dat Pro Fac Was Fac Ext Cet Arc Hub Fac Was Fac Arm Total Allies 102 | . 1 . . . . . 1 11 7 . . 2 . . 1 . . . 1 . 19 4 19 3 . 1 . 19 10 3 Largest Group 19 | . 1 . . . . . 1 12 3 3 3 4 4 . 1 . . . 1 . 19 14 11 10 2 1 . 19 12 3 Highest-Rated Group 702 | . 10 . . . . . 26 209 90 90 90 245 245 . 26 . . . 96 . 702 561 420 461 116 96 . 702 490 189 Highest-Rated Ally 159 | . 10 . . . . . 26 29 37 37 37 96 96 . 26 . . . 96 . 50 50 159 159 96 96 . 50 49 68 Total Orders 23 | . . . . . . . . 4 13 2 2 . . . . . . . . . . . . . . . . . . 2 STAY 5 | . . . . . . . . 2 . 1 1 . . . . . . . . . . . . . . . . . . 1 FOLLOW 5 | . . . . . . . . 2 . 1 1 . . . . . . . . . . . . . . . . . . 1 EXPLORE 13 | . . . . . . . . . 13 . . . . . . . . . . . . . . . . . . . . . Ally Attacks 779 | . . . . . . . . 128 22 9 7 . 26 . . . . . 9 . 114 138 84 42 7 13 . 51 96 33 Total Damage 24765 | . . . . . . . . 1629 416 157 156 . 1544 . . . . . 324 . 3476 5543 2053 1424 275 676 . 2998 2235 1859 Kills 136 | . . . . . . . . 17 4 4 2 . 8 . . . . . 1 . 7 37 16 5 2 5 . 8 11 9 Allies Corrupted 5 | . . . . . . . . . 1 . . . . . . . . . . . . 1 . 2 . . . . 1 . Allies Melted 1 | . . . . . . . . . . . . . . . . . . . . . . . . . . . . . 1 . Intel | -11 -10 -10 -9 -9 -9 -8 -8 -8 -7 -7 -7 -7 -7 -6 -6 -6 -6 -6 -5 -5 -5 -5 -5 -5 -5 -5 -4 -4 -4 -4 ------- Run | Scr Mat Min Mat Min Exi Min Mat Sto Fac Low Low Zio Dee Pro Fac Low Low Dat Pro Fac Was Fac Ext Cet Arc Hub Fac Was Fac Arm Robot Analysis Total 10 | . 1 . . . . . . . . . . . . . . . . . . 1 . . 2 . . 1 . . 5 . Derelict Logs Recovered 13 | . . 1 . 1 . . . . . 1 2 1 . 1 . 3 1 . 2 . . . . . . . . . . . Drone Launches 19 | . . . . . . . . 12 7 . . . . . . . . . . . . . . . . . . . . . Drone Recoveries 6 | . . . . . . . . . 6 . . . . . . . . . . . . . . . . . . . . . Exploration | -11 -10 -10 -9 -9 -9 -8 -8 -8 -7 -7 -7 -7 -7 -6 -6 -6 -6 -6 -5 -5 -5 -5 -5 -5 -5 -5 -4 -4 -4 -4 ------------- Run | Scr Mat Min Mat Min Exi Min Mat Sto Fac Low Low Zio Dee Pro Fac Low Low Dat Pro Fac Was Fac Ext Cet Arc Hub Fac Was Fac Arm Turns Passed 42260 | 88 1240 556 2549 1059 399 456 1647 1119 1242 1065 1120 1190 2577 937 4289 1639 1561 119 2196 2829 435 932 1347 350 138 542 1314 857 4017 2451 Spaces Moved 25325 | 50 767 410 1305 751 283 206 854 567 774 979 982 927 1821 682 2455 1244 1124 93 1117 1549 294 520 786 137 62 229 736 643 1792 1186 Core 279 | 3 . . . . . . . . . . . . . . 4 . . . . . . . . . . . . 272 . . Treads 545 | 46 191 28 173 . . . . 76 . . . . . . 31 . . . . . . . . . . . . . . . Legs 125 | . . . . . . . . . . . . . . . 125 . . . . . . . . . . . . . . . Wheels 24376 | 1 576 382 1132 751 283 206 854 491 774 979 982 927 1821 682 2295 1244 1124 93 1117 1549 294 520 786 137 62 229 736 371 1792 1186 Hover . | . . . . . . . . . . . . . . . . . . . . . . . . . . . . . . . Flight . | . . . . . . . . . . . . . . . . . . . . . . . . . . . . . . . Fastest Speed 50 | 50 100 110 125 135 135 120 120 130 105 105 105 105 105 130 105 120 120 120 105 116 116 131 116 130 145 145 130 50 110 110 Average Speed 132 | 152 130 121 146 135 140 153 139 148 119 105 105 105 126 130 132 120 120 120 169 140 130 131 135 144 146 146 152 113 156 128 Slowest Speed 750 | 160 240 240 240 135 165 165 165 165 130 105 105 105 130 130 750 120 120 120 215 245 131 131 150 145 190 190 175 175 230 130 Overloaded Moves . | . . . . . . . . . . . . . . . . . . . . . . . . . . . . . . . Propulsion Burnouts . | . . . . . . . . . . . . . . . . . . . . . . . . . . . . . . . Robots Hopped . | . . . . . . . . . . . . . . . . . . . . . . . . . . . . . . . Cave-ins Triggered . | . . . . . . . . . . . . . . . . . . . . . . . . . . . . . . . Exploration Rate (%) 66 | 4 93 61 79 99 69 35 58 90 35 95 94 84 83 68 57 96 91 75 91 33 95 16 84 58 66 37 19 95 42 49 Regions Visited 30 Branch Regions 19 Pre-discovered Areas 13 | . 2 1 2 1 . . . . . 1 1 3 . . . 1 . 1 . . . . . . . . . . . . Known Exits Taken 18 | . . . 1 . . . 1 . 1 1 1 1 . 1 1 1 1 1 1 . . 1 1 1 1 1 . . 1 . Unknown Exits Taken 8 | 1 1 1 . 1 1 1 . 1 . . . . 1 . . . . . . . . . . . . . . . . . Scrap Searched 29 | . . 1 . 2 . 1 . . . 4 2 3 . 1 . 3 11 . 1 . . . . . . . . . . . Spaces Dug 347 | . . . 8 13 . 22 8 16 11 1 20 . . . 41 18 41 . 9 20 . 6 . . . . 20 . 59 34 Terrain Destroyed 1442 | . 14 . 29 46 . 44 8 16 11 1 20 . 7 9 192 57 97 . 88 104 66 6 . . 8 326 27 109 85 72 Melee 73 | . . . 8 . . . 8 16 11 1 2 . . . 23 . . . . 1 . . . . . . . . 3 . Projectile 345 | . . . . . . . . . . . 18 . 7 9 43 18 6 . 13 39 2 6 . . . 5 27 4 82 66 AOE 1024 | . 14 . 21 46 . 44 . . . . . . . . 126 39 91 . 75 64 64 . . . 8 321 . 105 . 6 Terrain Rammed . | . . . . . . . . . . . . . . . . . . . . . . . . . . . . . . . Walls Destroyed . | . . . . . . . . . . . . . . . . . . . . . . . . . . . . . . . Machines Disabled . | . . . . . . . . . . . . . . . . . . . . . . . . . . . . . . . Actions | -11 -10 -10 -9 -9 -9 -8 -8 -8 -7 -7 -7 -7 -7 -6 -6 -6 -6 -6 -5 -5 -5 -5 -5 -5 -5 -5 -4 -4 -4 -4 --------- Run | Scr Mat Min Mat Min Exi Min Mat Sto Fac Low Low Zio Dee Pro Fac Low Low Dat Pro Fac Was Fac Ext Cet Arc Hub Fac Was Fac Arm Total 31564 | 59 912 446 1675 783 285 271 1149 736 967 1007 1038 1147 1985 712 3168 1362 1314 98 1345 2016 328 761 1022 263 92 405 873 724 2764 1857 Wait 3480 | . 52 11 155 15 . . 131 46 82 7 23 180 41 12 325 84 163 . 137 225 20 214 126 98 12 154 68 27 667 405 Move 25297 | 49 766 409 1304 750 282 205 853 566 773 978 981 926 1820 681 2454 1243 1123 92 1116 1549 293 519 785 136 61 228 736 642 1791 1186 Hop . | . . . . . . . . . . . . . . . . . . . . . . . . . . . . . . . Pick Up 298 | 4 19 1 15 4 1 6 24 12 16 1 . 15 14 1 35 1 2 . 11 29 1 8 4 4 4 1 10 20 23 12 Fast Attach 165 | 6 1 2 5 . . 1 11 11 6 4 . 1 17 1 22 2 1 . 6 15 1 1 1 2 . 1 6 7 23 11 Attach 128 | . 2 . 4 1 . 11 9 2 5 1 . 2 6 1 27 1 . . 6 15 3 . 3 . 2 . 3 5 7 12 Detach 48 | . . . . . . 1 2 5 1 2 . . 6 . 12 . . . 1 9 3 1 . . . . . . 3 2 Swap 559 | . 11 7 32 2 1 9 23 10 15 9 11 6 10 8 83 10 12 4 20 50 1 5 20 4 1 3 13 3 86 90 Drop 271 | . 11 5 18 1 1 . 17 23 13 3 . 16 19 1 34 1 2 1 10 33 1 4 3 5 3 1 4 2 26 13 Fire 994 | . 50 11 93 6 . 38 69 30 34 1 19 . 33 7 126 20 11 . 20 90 5 9 14 7 9 17 33 18 106 118 Melee 224 | . . . 49 4 . . 10 25 22 1 4 1 19 . 33 . . 1 18 1 . . 7 7 . . . . 21 1 Ram . | . . . . . . . . . . . . . . . . . . . . . . . . . . . . . . . Kick . | . . . . . . . . . . . . . . . . . . . . . . . . . . . . . . . Crush . | . . . . . . . . . . . . . . . . . . . . . . . . . . . . . . . Escape Stasis 72 | . . . . . . . . . . . . . . . 16 . . . . . . . 48 . . . . . 8 . Rewire 21 | . . . . . . . . . . . . . . . . . . . . . . . 11 . . . . . 3 7 Trap 1 | . . . . . . . . . . . . . . . 1 . . . . . . . . . . . . . . . Miscellaneous 6 | . . . . . . . . 6 . . . . . . . . . . . . . . . . . . . . . . Route ------- -11/Scrapyard -10/Materials (discovered 4 exits: *Mat x2 / *Min x2) -10/Mines -9/Materials (discovered 4 exits: *Mat x2 / *Min x2) -9/Mines (discovered 3 exits: *Mat x2 / *Exi) -9/Exiles -8/Mines -8/Materials (discovered 3 exits: *Fac x2 / *Sto) -8/Storage -7/Factory (discovered 3 exits: *Fac / *Low x2) -7/Lower Caves -7/Lower Caves (discovered 2 exits: *Fac / *Zio) -7/Zion -7/Deep Caves -6/Proximity Caves -6/Factory (discovered 4 exits: *Fac x2 / *Low x2) -6/Lower Caves -6/Lower Caves (discovered 2 exits: *Fac / *Dat) -6/Data Miner -5/Proximity Caves -5/Factory (discovered 6 exits: *Fac x2 / *Upp x2 / Ext x2) -5/Waste -5/Factory (discovered 4 exits: Upp x2 / *Ext x2) -5/Extension (discovered 2 exits: *Fac / *Cet) -5/Cetus -5/Archives (discovered 2 exits: *Hub x2) -5/Hub_04(d) (discovered 4 exits: *Fac x4) -4/Factory -4/Waste -4/Factory (discovered 4 exits: *Res / *Upp x2 / *Arm) -4/Armory (discovered 1 exit: Res) History --------- Turn | Location | Event 24 | -11/Scrapyard | Discovered new exit (range 16) 89 | -11/Scrapyard | Entered Materials 312 | -10/Materials | Build established: Mutant 485 | -10/Materials | Discovered new exit (range 10) 926 | -10/Materials | Discovered new exit (range 13) 1079 | -10/Materials | Discovered new exit (range 16) 1119 | -10/Materials | Discovered new exit (range 7) 1329 | -10/Materials | Entered Mines 1719 | -10/Mines | Assembled infested the area 1777 | -10/Mines | Discovered new exit (range 9) 1885 | -10/Mines | Build established: Scavenger-Mutant 1885 | -10/Mines | Entered Materials 1885 | -9/Materials | Evolved 2 slots: Utility x2 1940 | -9/Materials | Identified exit to Mines 2958 | -9/Materials | Discovered new exit (range 12) 3223 | -9/Materials | Build established: Mutant 4038 | -9/Materials | Discovered new exit (range 4) 4089 | -9/Materials | Repaired Med. Armor Plating 4434 | -9/Materials | Entered Mines 4495 | -9/Mines | Learned location of Storage (-8) 4495 | -9/Mines | Discovered new exit (range 13) 4556 | -9/Mines | Learned Materials terminal intel 4640 | -9/Mines | Deemed a non-threat by the Exiles lab entrance 4641 | -9/Mines | Discovered new exit (range 5) 4726 | -9/Mines | Received a Rocket Launcher from a helpful Derelict 4937 | -9/Mines | Discovered new exit (range 10) 4952 | -9/Mines | Found a damaged Exp. Sensor Array with a note attached 4955 | -9/Mines | Found Prototype Device 5493 | -9/Mines | Entered Exiles 5493 | -9/Exiles | Found Exiles lab abandoned 5875 | -9/Exiles | Discovered new exit (range 12) 5892 | -9/Exiles | Entered Mines 5936 | -8/Mines | Core integrity fell below 50% 5960 | -8/Mines | Lost 4 parts (1p1n1u1w) 6121 | -8/Mines | Destroyed 7 combat bots 6259 | -8/Mines | Core integrity fell below 20% 6297 | -8/Mines | Lost 5 parts (1n1u3w) 6338 | -8/Mines | Discovered new exit (range 7) 6348 | -8/Mines | Entered Materials 6348 | -8/Materials | Evolved 2 slots: Propulsion x1, Weapon x1 6349 | -8/Materials | Loaded intel: 11 terminal locations 6530 | -8/Materials | Identified exit to Storage 6681 | -8/Materials | Identified Exp. Sensor Array 7067 | -8/Materials | Discovered new exit (range 5) 7480 | -8/Materials | Repaired Broken Hvy. Particle Gun 7570 | -8/Materials | Discovered new exit (range 4) 7995 | -8/Materials | Entered Storage 7995 | -8/Storage | Accompanied by 1 ally 8034 | -8/Storage | Found Prototype Protection 8034 | -8/Storage | Identified Lgt. Regenerative Plating 8037 | -8/Storage | Found Lgt. Regenerative Plating 8040 | -8/Storage | Found Lgt. Regenerative Plating 8043 | -8/Storage | Found Lgt. Regenerative Plating 8175 | -8/Storage | Found Prototype Launcher 8176 | -8/Storage | Identified Scatter Rocket Array 8321 | -8/Storage | Assisted by bots powering up and referring to "LRC-V3" 8637 | -8/Storage | Discovered new exit (range 9) 8729 | -8/Storage | Core integrity fell below 50% 8900 | -8/Storage | Repaired Arm. Huge Wheel? 9114 | -8/Storage | Entered Factory 9114 | -7/Factory | Accompanied by 13 allies 9114 | -7/Factory | Evolved 2 slots: Utility x2 9199 | -7/Factory | Discovered new exit (range 61) 9311 | -7/Factory | Fabricated Plasma Cannon (x2) 9398 | -7/Factory | Fabricated Adv. System Shield (x1) 9412 | -7/Factory | Build established: Hacker-Mutant 9446 | -7/Factory | Discovered new exit (range 99) 9551 | -7/Factory | Discovered new exit (range 48) 9802 | -7/Factory | Identified exit to Lower Caves 10105 | -7/Factory | Fabricated P-60 Hacker? 10213 | -7/Factory | Repaired Imp. Cooling System 10227 | -7/Factory | Repaired Structural Scanner 10237 | -7/Factory | Hacker 4b assimilated hostile G-47 Trooper 10356 | -7/Factory | Entered Lower Caves 10356 | -7/Lower Caves | Accompanied by 3 allies 10562 | -7/Lower Caves | Learned Factory garrison access intel 11078 | -7/Lower Caves | Build established: Skirmisher 11096 | -7/Lower Caves | Discovered new exit (range 9) 11138 | -7/Lower Caves | Encountered a Warlord checkpoint 11138 | -7/Lower Caves | Identified exit to Lower Caves 11421 | -7/Lower Caves | Entered another Lower Caves area 11421 | -7/Lower Caves | Accompanied by 3 allies 11482 | -7/Lower Caves | Discovered new exit (range 3) 11485 | -7/Lower Caves | Identified exit to Factory 11870 | -7/Lower Caves | Build established: Mutant 12112 | -7/Lower Caves | Encountered a Warlord checkpoint 12348 | -7/Lower Caves | Discovered new exit (range 15) 12362 | -7/Lower Caves | Identified exit to Zion 12472 | -7/Lower Caves | Learned Factory stockpile data 12541 | -7/Lower Caves | Entered Zion 12541 | -7/Zion | Accompanied by 2 allies 12559 | -7/Zion | Given A8's code to call for help 12717 | -7/Zion | Learned location of Warlord (-5) 12740 | -7/Zion | Acquired unknown access codes intercepted by a Zionite 12776 | -7/Zion | Found Prototype Hackware 12778 | -7/Zion | Found Prototype Processor 12781 | -7/Zion | Found Prototype Processor 12794 | -7/Zion | Identified Exp. Hacking Suite 12830 | -7/Zion | Identified Exp. Targeting Computer 12880 | -7/Zion | Found Prototype Processor 12908 | -7/Zion | Identified Exp. Armor Integrity Analyzer 12910 | -7/Zion | Found Prototype Processor 12953 | -7/Zion | Identified Exp. Core Analyzer 12966 | -7/Zion | Identified Exp. Signal Interpreter 13007 | -7/Zion | Found Prototype Launcher 13038 | -7/Zion | Learned 4 Factory zone layouts 13119 | -7/Zion | Identified Rocket Array 13240 | -7/Zion | Found CR-A16's Pointy Stick 13660 | -7/Zion | Opened final containment barrier to the Deep Caves 13664 | -7/Zion | Enhanced Grunt warped into view, answering call for help 13678 | -7/Zion | Enhanced Grunt warped into view, answering call for help 13717 | -7/Zion | Discovered new exit (range 3) 13717 | -7/Zion | Saw the warning signs outside the Deep Caves entrance 13718 | -7/Zion | Identified exit to Deep Caves 13731 | -7/Zion | Entered Deep Caves 13731 | -7/Deep Caves | Accompanied by 4 allies 13965 | -7/Deep Caves | Z-Facility disabled 13989 | -7/Deep Caves | Attacked by Z-Imprinter 14015 | -7/Deep Caves | Destroyed Z-Imprinter 14199 | -7/Deep Caves | Core integrity fell below 50% 14262 | -7/Deep Caves | Found Prototype Protection 14262 | -7/Deep Caves | Identified Zio. Heavy Carapace 14287 | -7/Deep Caves | Lost 10 parts (1p2n5u2w) 14374 | -7/Deep Caves | Found Prototype Protection 14374 | -7/Deep Caves | Identified Zio. Weapon Casing 14667 | -7/Deep Caves | Build established: Tank 14819 | -7/Deep Caves | Found Zio. Heavy Carapace 15198 | -7/Deep Caves | Discovered new exit (range 7) 15608 | -7/Deep Caves | Spotted as-61736 15617 | -7/Deep Caves | Destroyed as-61736 15662 | -7/Deep Caves | Triggered Deep Caves wall 15662 | -7/Deep Caves | Spotted AS-35094 15667 | -7/Deep Caves | Core integrity fell below 20% 15667 | -7/Deep Caves | Destroyed AS-35094 15670 | -7/Deep Caves | Destroyed AS-81911 15691 | -7/Deep Caves | Destroyed 37 combat bots 16017 | -7/Deep Caves | Build established: Gunner 16172 | -7/Deep Caves | Exposed GOLEM chamber 16176 | -7/Deep Caves | Found GOLEM Unit 16193 | -7/Deep Caves | Found GOLEM Unit 16308 | -7/Deep Caves | Entered Proximity Caves 16310 | -6/Proximity Caves | Learned Factory emergency access door positions 16812 | -6/Proximity Caves | Discovered exit to Factory (range 13) 17245 | -6/Proximity Caves | Entered Factory 17245 | -6/Factory | Evolved 2 slots: Utility x2 17249 | -6/Factory | Loaded intel: 4 garrison access locations 17404 | -6/Factory | Garrison activated, responded to threat 17464 | -6/Factory | Discovered new exit (range 9) 17595 | -6/Factory | First assault squad dispatched 17817 | -6/Factory | Build established: Assassin 18364 | -6/Factory | Lost 4 parts (1n3u) 19356 | -6/Factory | Identified exit to Lower Caves 19669 | -6/Factory | Lost 3 parts (1n2w) 19683 | -6/Factory | Destroyed 7 combat bots 19904 | -6/Factory | Build established: Hacker-Mutant 19951 | -6/Factory | Repaired Broken Exp. Heat Sink? 20036 | -6/Factory | Repaired Imp. System Restoration Module? 20207 | -6/Factory | Build established: Hacker-Assassin 20400 | -6/Factory | Core integrity fell below 50% 20413 | -6/Factory | Lost 6 parts (1p1n1u3w) 20463 | -6/Factory | Discovered new exit (range 17) 20580 | -6/Factory | Repaired Cld. Particle Cannon? 20584 | -6/Factory | Fabricated Exp. Hacking Suite (x1) 20976 | -6/Factory | Discovered new exit (range 4) 20978 | -6/Factory | Identified exit to Factory 21162 | -6/Factory | Fabricated Exp. Hacking Suite? 21387 | -6/Factory | Fabricated Exp. Hacking Suite (x1) 21534 | -6/Factory | Entered Lower Caves 21829 | -6/Lower Caves | Build established: Hacker-Mutant 22652 | -6/Lower Caves | Found Alien Artifact 22652 | -6/Lower Caves | Identified Core Expander 22652 | -6/Lower Caves | Installed Core Expander, added new Power slot 22703 | -6/Lower Caves | Learned Factory trap positions 22839 | -6/Lower Caves | Discovered new exit (range 11) 22849 | -6/Lower Caves | Identified exit to Lower Caves 22920 | -6/Lower Caves | Learned 8 Factory zone layouts 23173 | -6/Lower Caves | Entered another Lower Caves area 23174 | -6/Lower Caves | Encountered a Warlord checkpoint 23239 | -6/Lower Caves | Discovered exit to Factory (range 7) 23477 | -6/Lower Caves | Learned Factory garrison access intel 24337 | -6/Lower Caves | Build established: Hacker-Skirmisher 24690 | -6/Lower Caves | Discovered new exit (range 17) 24719 | -6/Lower Caves | Identified exit to Data Miner 24734 | -6/Lower Caves | Entered Data Miner 24734 | -6/Data Miner | Discovered new exit (range 6) 24746 | -6/Data Miner | Identified exit to Proximity Caves 24762 | -6/Data Miner | Met Data Miner 24800 | -6/Data Miner | Learned location of Section 7 (-3) 24800 | -6/Data Miner | Acquired the access code to Warlord's prototype stash 24820 | -6/Data Miner | Received God Mode back door access code from Data Miner 24853 | -6/Data Miner | Entered Proximity Caves 25218 | -5/Proximity Caves | Escorted by Enhanced Grunt 25263 | -5/Proximity Caves | Attracted the attention of an 0b10 checkpoint 25281 | -5/Proximity Caves | Found Prototype Device 25281 | -5/Proximity Caves | Identified Exp. Thermal Shield 25306 | -5/Proximity Caves | Learned Factory trap positions 25374 | -5/Proximity Caves | Spotted B-75 Beast 25421 | -5/Proximity Caves | Revealed the true nature of CR-A16's Pointy Stick 25428 | -5/Proximity Caves | Destroyed B-75 Beast 25454 | -5/Proximity Caves | Lost 7 parts (2p2n2u1w) 25476 | -5/Proximity Caves | Learned 4 Factory zone layouts 25881 | -5/Proximity Caves | Found Imp. Powered Armor 25890 | -5/Proximity Caves | Found Imp. Powered Armor 26362 | -5/Proximity Caves | Discovered exit to Factory (range 12) 26955 | -5/Proximity Caves | Build established: Hacker-Mutant 27049 | -5/Proximity Caves | Entered Factory 27049 | -5/Factory | Evolved 2 slots: Utility x2 27050 | -5/Factory | Identified exit to Extension 27051 | -5/Factory | Loaded intel: 101 trap records 27052 | -5/Factory | Loaded intel: 4 garrison access locations 27218 | -5/Factory | Repaired Imp. Powered Armor? 27400 | -5/Factory | Build established: Hacker-Skirmisher 27462 | -5/Factory | Repaired Cld. Particle Cannon 27672 | -5/Factory | Found Prototype Device 27672 | -5/Factory | Identified Active Sensor Suite 27815 | -5/Factory | Repaired Hvy. Plasma Cannon? 27837 | -5/Factory | Discovered new exit (range 13) 27853 | -5/Factory | Identified exit to Upper Caves 28100 | -5/Factory | Repaired Imp. Powered Armor? 28192 | -5/Factory | Repaired Gamma Rifle? 28234 | -5/Factory | Discovered new exit (range 13) 28456 | -5/Factory | Fabricated Exp. Signal Interpreter (x1) 28537 | -5/Factory | Repaired Hrd. Heavy Armor Plating? 28593 | -5/Factory | Central database locked down 28902 | -5/Factory | Incoming investigation squad redirected 28914 | -5/Factory | Incoming investigation squad redirected 28933 | -5/Factory | Fabricated HERF Cannon (x1) 29115 | -5/Factory | Build established: Wizard-Skirmisher 29205 | -5/Factory | Incoming investigation squad redirected 29485 | -5/Factory | Incoming investigation squad redirected 29521 | -5/Factory | Discovered new exit (range 9) 29613 | -5/Factory | Lost 5 parts (1p2n2w) 29618 | -5/Factory | Destroyed 10 combat bots 29673 | -5/Factory | Fabricated Exp. Hacking Suite (x1) 29703 | -5/Factory | Incoming investigation squad redirected 29734 | -5/Factory | Fabricated Exp. Sensor Array (x1) 29858 | -5/Factory | Identified exit to Factory 29878 | -5/Factory | Sucked down chute 29878 | -5/Factory | Entered Waste 29898 | -5/Waste | Spotted C-40 Crusher 29901 | -5/Waste | Spotted C-40 Crusher 29928 | -5/Waste | Destroyed C-40 Crusher 29935 | -5/Waste | Spotted C-40 Crusher 29946 | -5/Waste | Destroyed C-40 Crusher 30013 | -5/Waste | Warlord forces began an assault 30031 | -5/Waste | Spotted C-40 Crusher 30036 | -5/Waste | Allies destroyed C-40 Crusher 30118 | -5/Waste | Spotted C-40 Crusher 30123 | -5/Waste | Allies destroyed C-40 Crusher 30131 | -5/Waste | Spotted C-40 Crusher 30135 | -5/Waste | Allies destroyed C-40 Crusher 30218 | -5/Waste | Build established: Wizard-Tank 30224 | -5/Waste | Discovered new exit (range 13) 30307 | -5/Waste | Identified exit to Factory 30313 | -5/Waste | Entered Factory 30313 | -5/Factory | Accompanied by 14 allies 30314 | -5/Factory | Loaded intel: 104 trap records 30354 | -5/Factory | Garrison activated, responded to threat 30447 | -5/Factory | Fabricated Hvy. Disruptor Cannon (x1) 30541 | -5/Factory | Fabricated X-72 Disruptor (x2) 30661 | -5/Factory | Fabricated Adv. Particle Charger (x2) 30882 | -5/Factory | Repaired Imp. Powered Armor 30913 | -5/Factory | First assault squad dispatched 30925 | -5/Factory | Repaired HERF Cannon 30954 | -5/Factory | Repaired Imp. Powered Armor 30995 | -5/Factory | Repaired Scatter Rocket Array 31008 | -5/Factory | Build established: Wizard-Mutant 31040 | -5/Factory | Repaired Exp. Heat Sink? 31136 | -5/Factory | Repaired Adv. Cooling System 31180 | -5/Factory | Cargo convoy interrupted 31187 | -5/Factory | Local machine network offline 31245 | -5/Factory | Entered Extension 31245 | -5/Extension | Accompanied by 2 allies 31339 | -5/Extension | Rescued a captive Derelict 31340 | -5/Extension | Rescued a captive Derelict 31402 | -5/Extension | Repaired Imp. System Restoration Module 31458 | -5/Extension | Rescued a captive Derelict 31459 | -5/Extension | Rescued a captive Derelict 31621 | -5/Extension | Build established: Wizard-Skirmisher 31750 | -5/Extension | Rescued a captive Derelict 32014 | -5/Extension | Spotted B-75 Beast 32024 | -5/Extension | Spotted B-75 Beast 32035 | -5/Extension | Destroyed B-75 Beast 32047 | -5/Extension | Destroyed B-75 Beast 32191 | -5/Extension | Rescued A7 32260 | -5/Extension | Rescued a captive Derelict 32261 | -5/Extension | Rescued a captive Derelict 32281 | -5/Extension | Rescued a captive Derelict 32409 | -5/Extension | Rescued a captive Derelict 32542 | -5/Extension | Local machine network offline 32573 | -5/Extension | Discovered exit to Factory (range 10) 32575 | -5/Extension | Discovered new exit (range 6) 32582 | -5/Extension | Identified exit to Cetus 32592 | -5/Extension | Entered Cetus 32592 | -5/Cetus | Accompanied by 10 allies (A7) 32597 | -5/Cetus | Acquired a Cetus Manufacturing Module code from A7 32612 | -5/Cetus | Spotted Cetus Guard 32612 | -5/Cetus | Spotted Cetus Guard 32614 | -5/Cetus | Spotted Cetus Guard 32617 | -5/Cetus | Destroyed Cetus Guard 32617 | -5/Cetus | Spotted Cetus Guard 32636 | -5/Cetus | Allies destroyed Cetus Guard 32636 | -5/Cetus | Destroyed Cetus Guard 32642 | -5/Cetus | Destroyed Cetus Guard 32706 | -5/Cetus | Started Cetus Manufacturing Module 32717 | -5/Cetus | Escorted A7 to Cetus Mainframe 32731 | -5/Cetus | Manufactured an Enhanced Grunt 32756 | -5/Cetus | Manufactured an Enhanced Grunt 32781 | -5/Cetus | Manufactured an Enhanced Grunt 32795 | -5/Cetus | Cetus Manufacturing Module disabled 32850 | -5/Cetus | Discovered new exit (range 16) 32871 | -5/Cetus | Identified exit to Archives 32893 | -5/Cetus | Destroyed A7 32895 | -5/Cetus | Extracted ID and sensor layout for unrecognized location from A7's data core 32905 | -5/Cetus | Found Prototype Protection 32906 | -5/Cetus | Identified Med. Regenerative Plating 32942 | -5/Cetus | Entered Archives 32942 | -5/Archives | Accompanied by 2 allies 33027 | -5/Archives | Discovered new exit (range 16) 33053 | -5/Archives | Discovered new exit (range 13) 33069 | -5/Archives | Identified exit to Hub_04(d) 33080 | -5/Archives | Entered Hub_04(d) 33080 | -5/Hub_04(d) | Accompanied by 1 ally 33343 | -5/Hub_04(d) | Discovered exit to Factory (range 15) 33589 | -5/Hub_04(d) | Network Hub disabled 33591 | -5/Hub_04(d) | Network Hub disabled 33591 | -5/Hub_04(d) | Spotted Lightning 33591 | -5/Hub_04(d) | Spotted Lightning 33591 | -5/Hub_04(d) | Spotted Lightning 33622 | -5/Hub_04(d) | Entered Factory 33622 | -4/Factory | Evolved 2 slots: Utility x2 34073 | -4/Factory | Fabricated Huge Storage Unit (x1) 34085 | -4/Factory | Incoming investigation squad redirected 34541 | -4/Factory | Discovered new exit (range 7) 34614 | -4/Factory | Repaired Rnf. Deuterium Engine? 34656 | -4/Factory | Build established: Wizard-Mutant 34713 | -4/Factory | Repaired Hcp. Storage Unit 34936 | -4/Factory | Sucked down chute 34936 | -4/Factory | Entered Waste 34965 | -4/Waste | Found Prototype Device 35038 | -4/Waste | Spotted C-40 Crusher 35046 | -4/Waste | Spotted C-40 Crusher 35051 | -4/Waste | Destroyed C-40 Crusher 35087 | -4/Waste | Destroyed C-40 Crusher 35122 | -4/Waste | Spotted C-40 Crusher 35127 | -4/Waste | Spotted C-40 Crusher 35136 | -4/Waste | Destroyed C-40 Crusher 35173 | -4/Waste | Crushed by Compactor (1 part destroyed, 1 dropped) 35176 | -4/Waste | Crushed by Compactor (1 part destroyed, 1 dropped) 35179 | -4/Waste | Crushed by Compactor (1 part destroyed, 2 dropped) 35182 | -4/Waste | Crushed by Compactor (1 part destroyed, 2 dropped) 35185 | -4/Waste | Crushed by Compactor (1 part destroyed, 2 dropped) 35190 | -4/Waste | Spotted C-40 Crusher 35208 | -4/Waste | Spotted C-40 Crusher 35216 | -4/Waste | Lost 6 parts (1p2n2u1w) 35249 | -4/Waste | Warlord forces began an assault 35291 | -4/Waste | Allies destroyed C-40 Crusher 35302 | -4/Waste | Allies destroyed C-40 Crusher 35302 | -4/Waste | Allies destroyed C-40 Crusher 35700 | -4/Waste | Build established: Wizard-Skirmisher 35704 | -4/Waste | Discovered new exit (range 10) 35788 | -4/Waste | Identified exit to Factory 35793 | -4/Waste | Entered Factory 35793 | -4/Factory | Accompanied by 12 allies 35856 | -4/Factory | Repaired Broken Arm. Heavy Treads? 35870 | -4/Factory | P-70 Sage assimilated allied MZ-CK8(g) 35925 | -4/Factory | Identified exit to Upper Caves 35925 | -4/Factory | Identified exit to Armory 35938 | -4/Factory | Repaired Centrium Medium Armor Plating? 36059 | -4/Factory | Repaired Imp. Powered Armor? 36149 | -4/Factory | Repaired Imp. System Restoration Module? 36394 | -4/Factory | Incoming investigation squad redirected 36525 | -4/Factory | Repaired Phase Cannon 37017 | -4/Factory | Fabricated Centrium Wheel (x2) 37085 | -4/Factory | Central database locked down 37207 | -4/Factory | Identified Exp. Thermal Defense Suite 37367 | -4/Factory | Fabricated Exp. Terrain Scan Processor (x1) 37888 | -4/Factory | Repaired Imp. System Restoration Module 37917 | -4/Factory | Repaired Broken Centrium Wheel 37937 | -4/Factory | Repaired Imp. Coolant Injector 37958 | -4/Factory | Repaired Antimatter Reactor 38187 | -4/Factory | Discovered new exit (range 14) 38204 | -4/Factory | Spotted B-86 Titan 38205 | -4/Factory | Identified exit to Research 38222 | -4/Factory | Destroyed B-86 Titan 38283 | -4/Factory | Fabricated Adv. System Shield (x1) 38291 | -4/Factory | Incoming investigation squad redirected 38911 | -4/Factory | Incoming investigation squad redirected 38976 | -4/Factory | Fabricated Exp. Hacking Suite (x1) 39310 | -4/Factory | Fabricated Centrium Wheel (x2) 39689 | -4/Factory | Repaired Imp. System Restoration Module 39753 | -4/Factory | Repaired Centrium Medium Armor Plating 39783 | -4/Factory | Repaired Imp. Coolant Injector 39810 | -4/Factory | Entered Armory 40288 | -4/Armory | Fabricated Particle Reactor (x2) 40521 | -4/Armory | Core integrity fell below 50% 41052 | -4/Armory | Fabricated Enh. Nova Cannon (x1) 41090 | -4/Armory | Discovered exit to Research (range 21) 41258 | -4/Armory | Build established: Machinist-Mutant 42095 | -4/Armory | Core integrity fell below 20% 42120 | -4/Armory | Repaired Imp. System Restoration Module? 42120 | -4/Armory | System corruption reached 10% 42168 | -4/Armory | Energy Cycler disabled 42261 | -4/Armory | Destroyed by L-61 Swordsman with Power Sword Last Messages --------------- 42233_ Extracted 84 energy. 42233_ L-61 Swordsman heat damages Adv. Melee Analysis Suite. 42235_ L-61 Swordsman suffers critical hit (Meltdown). 42235_ Power Sword melted. 42236_ Extracted 84 energy. 42238_ Destroyed Microactuators. 42239_ Tesla Rifle destroyed. 42246_ HV Slug penetrates L-61 Swordsman. 42246_ HV Slug penetrates Component Storage. 42246_ Lgt. Antimatter Reactor melted. 42246_ L-61 Swordsman destroyed. 42250_ System corrupted: Heat flow error (+231). 42250_ HV Slug penetrates L-61 Swordsman. 42250_ L-61 Swordsman suffers critical hit (Destroy). 42250_ Destroyed Flexi-carbon Leg. 42253_ HV Slug penetrates L-61 Swordsman. 42254_ ALERT: Hostiles spotted, dispatching reinforcements to Terminal A013. 42256_ HV Slug penetrates L-61 Swordsman. 42256_ HV Slug penetrates Wall. 42257_ Enh. Quantum Rifle destroyed. Map ----- +----------------------------------------------------+ | | | | | | | | | | | | | | | ??????????######################################## | | ?????????###### ##################### | | ????????""##### ################ """# | | ???????"T"##### ################""R"# | | ?????? o + ################"" "# | | ?????# # + | | ?????# # # | | ???? # " F" ########+#### # """"" != " | | ????## """" ###### "" "" != ! | | ???### ###### % """ ! " | | ??? ###### = % | | ??? % = =% | | ?? # [!%# ##### * | | ?? """ """"" # [%* ] = ##### | | ?? """ "" F" # = ;####] | | ??### """ "" "" # ;##|#! | | ??### # = ; !| == | | ??### #l!% ;########## | | ?#### ### #@%! ########### | | ??### #### ####### ######;;;;;;;;;########### | | ??### ####+####### ######## # ############# | | ??### # # ########################## | | ??### # # ########################## | | ??### # # ########################## | | ??+ # # ########################## | | ???## # + ########################## | | ???## # # ########################## | | ???## # # ########################## | | ???? ############ ########################## | | ????# + # ########################## | | ?????+#### # ########################## | | ????? ## # ########################## | | ?????? ## + ########################## | | ??????? ## # ########################## | | ????????## # ########################## | | ?????????# # ########################## | | ?????????? # ########################## | | ???????????######### ########################## | | ????????????## ##### ########################## | | ??????????????###### ########################## | | ???????????????? # ########################## | | ???????????????????# #########?################ | | ?????????????????????????#??????################## | +----------------------------------------------------+ Best States ------------- Heat Dissipation 101 Coolant Potential 80 Energy Generation 41 Energy Capacity 860 Matter Stores 300 Matter Capacity 300 Sight Range 16 Robot Scan Range 20 Terrain Scan Range 24 Terrain Scan Density 1010 Jamming Range 16 Cloak Strength 4 Additional Mass Support 9 Base Temperature (-) 150 Corruption Block 15 Armor Coverage 2000 Resistance: TH 15 Resistance: EM 25 Weapon Shielding 100 Weapon Cycling 15 Evasion (%) 50 Targeting Accuracy 8 Recoil Reduction 3 Particle Charging 25 Offensive Hacking 64 Defensive Hacking 28 Authchip Count 2 Item Schematics ----------------- Hcp. Storage Unit | -10/Materials | Hacked Huge Storage Unit | -10/Materials | Hacked Imp. EM Shotgun | -9/Materials | Scanalyzed Exp. Sensor Array | -8/Materials | Scanalyzed Hacking Suite | -8/Materials | Scanalyzed Adv. System Shield | -7/Factory | Hacked Imp. Signal Interpreter | -7/Factory | Scanalyzed Scatter Rocket Array | -7/Factory | Scanalyzed System Restoration Module | -7/Factory | Scanalyzed Powered Hammer | -7/Zion | Archive Drone Bay | -7/Zion | Archive Imp. Melee Analysis Suite | -7/Zion | Archive 0b10 Decoder Chip [Skirmisher] | -7/Zion | Archive Imp. Particle Charger | -7/Zion | Archive Hvy. Battle Rifle | -7/Zion | Archive Recoil Nullifier | -7/Zion | Archive Mak. System Shield | -7/Zion | Archive Matter Compressor | -7/Zion | Archive Plasma Cannon | -7/Zion | Archive EM Disruption Field | -7/Zion | Archive Med. Reactive Plating | -7/Zion | Archive Mak. Cloaking Device | -7/Zion | Archive Arc Projector | -7/Zion | Archive Adv. Hacking Suite | -7/Zion | Archive Exp. Hacking Suite | -6/Factory | Scanalyzed Imp. System Restoration Module | -6/Factory | Scanalyzed Exp. Signal Interpreter | -6/Factory | Scanalyzed Exp. Targeting Computer | -6/Factory | Scanalyzed Exp. Armor Integrity Analyzer | -6/Factory | Scanalyzed Exp. Heat Sink | -6/Factory | Scanalyzed Lyr. Light Armor Plating | -6/Factory | Scanalyzed Lgt. Antimatter Reactor | -6/Factory | Hacked Myomer Leg | -6/Factory | Hacked Combat Drone Bay | -6/Data Miner | Free Lgt. Regenerative Plating | -6/Data Miner | Free Cld. Nuclear Pulse Thruster | -6/Data Miner | Free Prc. Energy Filter | -6/Data Miner | Free Cld. Plasma Rifle | -6/Data Miner | Free Imp. Linear Gravjet | -6/Data Miner | Free Adv. Reaction Control System | -6/Data Miner | Free Dispersion Rifle | -6/Data Miner | Free Hvy. Treads | -6/Data Miner | Free Adv. Recalibrator | -6/Data Miner | Free Mic. Antimatter Reactor | -5/Factory | Hacked Arm. Huge Wheel | -5/Factory | Hacked HERF Cannon | -5/Factory | Hacked Imp. Heavy Laser | -5/Factory | Scanalyzed Imp. Powered Armor | -5/Factory | Scanalyzed Lyr. Heavy Armor Plating | -5/Factory | Scanalyzed Lrn. Terrain Scanner | -5/Factory | Hacked Adv. Weapon Cycler | -5/Hub_04(d) | Hacked Imp. Arc Projector | -5/Hub_04(d) | Hacked Centrium Medium Armor Plating | -4/Factory | Scanalyzed Exp. Terrain Scan Processor | -4/Factory | Hacked Proton Burst Cannon | -4/Factory | Scanalyzed Centrium Wheel | -4/Factory | Hacked Exp. Thermal Defense Suite | -4/Factory | Scanalyzed Adv. Energy Well | -4/Factory | Scanalyzed Imp. Q-thruster | -4/Factory | Hacked Cmb. Linear Gravjet | -4/Factory | Hacked Imp. Phase Shifter | -4/Factory | Hacked Impulse Thruster Array | -4/Factory | Hacked Robot Schematics ------------------ P-60 Hacker | -7/Factory | Hacked B-48 Gladiator | -7/Zion | Archive X-62 Marksman | -7/Zion | Archive A-02 Transporter | -7/Zion | Archive Y-72 Warden | -7/Zion | Archive X-72 Disruptor | -5/Factory | Hacked I-47 Archangel | -5/Factory | Hacked P-70 Sage | -5/Hub_04(d) | Hacked H-77 Assassin | -4/Factory | Hacked L-61 Swordsman | -4/Factory | Hacked Fabricated ------------ Plasma Cannon | x2 | -7/Factory | Preloaded Adv. System Shield | x1 | -7/Factory | Authchip P-60 Hacker | x2 | -7/Factory | Authchip Exp. Hacking Suite | x1 | -6/Factory | Authchip Exp. Hacking Suite | x1 | -6/Factory | Authchip Exp. Hacking Suite | x1 | -6/Factory | Authchip Exp. Signal Interpreter | x1 | -5/Factory HERF Cannon | x1 | -5/Factory Exp. Hacking Suite | x1 | -5/Factory | Authchip Exp. Sensor Array | x1 | -5/Factory Hvy. Disruptor Cannon | x1 | -5/Factory | Preloaded X-72 Disruptor | x2 | -5/Factory Adv. Particle Charger | x2 | -5/Factory | Preloaded Huge Storage Unit | x1 | -4/Factory Centrium Wheel | x2 | -4/Factory | Authchip Exp. Terrain Scan Processor | x1 | -4/Factory Adv. System Shield | x1 | -4/Factory Exp. Hacking Suite | x1 | -4/Factory Centrium Wheel | x2 | -4/Factory Particle Reactor | x2 | -4/Armory | Preloaded Enh. Nova Cannon | x1 | -4/Armory | Preloaded Alien Tech Used ----------------- Core Expander Achievements -------------- None Challenges ------------ None Game ------ Seed LinkedLinearCloak Manual? 0 Play Time 07:19:21 Cumulative 381.1 hours Start 2022.06.15 @ 20:45:00 End 2022.06.16 @ 16:52:48 Sessions 6 Manual Loads 0 Difficulty Rogue Special Mode None Game No. 99 Rogue 99 Adventurer 0 Explorer 0 Win Type - Total 19 Types 15/1/3/0/0/0/0/0/0 Lore% 90 Gallery% 92 Achievement% 77 Wizard Run 0 Options --------- ASCII 0 Keyboard 0 Movement Numpad Keybinds 0 Fullscreen 1 Font 14/SmallcapsGlow Map View 84x54 Tactical HUD 1 Map Filters NONE Filters NONE Steam 1 RUN: 490ce126-6f6d-4ed0-ab83-ba638b364014